Workbook

Sheet Dashboard
C160: =OFFSET(Analyse.1!$B$154:$N$166,,,ROWS(Analyse.1!$B$154:$B$166)-(COUNTIF(Analyse.1!$B$154:$B$166,"")),COLUMNS(Analyse.1!$B$154:$N$154)-(COUNTIF(Analyse.1!$B$154:$N$154,""))) -> Zeilenbeschriftungen | D160: Matthias Hauer (CDU) | E160: Kai Gehring (GRÜNE) | F160: Rüdiger König (FDP) | G160: Dr. Gereon Wolters (SPD) | H160: Martin Lange (Die PARTEI) | I160: Stefan Keute (AfD) | J160: Ezgi Güyildar (DIE LINKE) | K160: Volker Wild (dieBasis) | L160: Kai Hemsteeg (FREIE WÄHLER) | M160: Dirk Willing (MLPD) | N160: Diana Kummer (DKP) | O160: Dirk Schmidt (LKR)
C161: Gesamte Schule | D161: 309 | E161: 144 | F161: 87 | G161: 72 | H161: 25 | I161: 13 | J161: 9 | K161: 7 | L161: 6 | M161: 4 | N161: 3 | O161: 1
C162: Unterstufe | D162: 99 | E162: 44 | F162: 8 | G162: 18 | H162: 1 | I162: 4 | J162: 1 | K162: 0 | L162: 2 | M162: 1 | N162: 3 | O162: 1
C163: Mittelstufe | D163: 121 | E163: 59 | F163: 46 | G163: 28 | H163: 16 | I163: 8 | J163: 3 | K163: 5 | L163: 3 | M163: 1 | N163: 0 | O163: 0
C164: Oberstufe | D164: 89 | E164: 41 | F164: 33 | G164: 26 | H164: 8 | I164: 1 | J164: 5 | K164: 2 | L164: 1 | M164: 2 | N164: 0 | O164: 0
C165: 5. Klasse | D165: 48 | E165: 18 | F165: 8 | G165: 7 | H165: 1 | I165: 3 | J165: 1 | K165: 0 | L165: 1 | M165: 1 | N165: 1 | O165: 1
C166: 6. Klasse | D166: 51 | E166: 26 | F166: 0 | G166: 11 | H166: 0 | I166: 1 | J166: 0 | K166: 0 | L166: 1 | M166: 0 | N166: 2 | O166: 0
C167: 7. Klasse | D167: 27 | E167: 29 | F167: 9 | G167: 10 | H167: 6 | I167: 7 | J167: 0 | K167: 1 | L167: 1 | M167: 0 | N167: 0 | O167: 0
C168: 8. Klasse | D168: 41 | E168: 15 | F168: 16 | G168: 9 | H168: 4 | I168: 1 | J168: 1 | K168: 2 | L168: 0 | M168: 1 | N168: 0 | O168: 0
C169: 9. Klasse | D169: 53 | E169: 15 | F169: 21 | G169: 9 | H169: 6 | I169: 0 | J169: 2 | K169: 2 | L169: 2 | M169: 0 | N169: 0 | O169: 0
C170: EF | D170: 31 | E170: 12 | F170: 4 | G170: 9 | H170: 4 | I170: 1 | J170: 2 | K170: 1 | L170: 0 | M170: 0 | N170: 0 | O170: 0
C171: Q1 | D171: 38 | E171: 17 | F171: 23 | G171: 9 | H171: 1 | I171: 0 | J171: 2 | K171: 0 | L171: 0 | M171: 0 | N171: 0 | O171: 0
C172: Q2 | D172: 20 | E172: 12 | F172: 6 | G172: 8 | H172: 3 | I172: 0 | J172: 1 | K172: 1 | L172: 1 | M172: 2 | N172: 0 | O172: 0
C192: =OFFSET(Analyse.2!$B$241:$AC$253,,,ROWS(Analyse.2!$B$241:$B$253)-(COUNTIF(Analyse.2!$B$241:$B$253,"")),COLUMNS(Analyse.2!$B$241:$AC$241)-(COUNTIF(Analyse.2!$B$241:$AC$241,""))) -> Zeilenbeschriftungen | D192: Summe von CDU | E192: Summe von GRÜNE | F192: Summe von FDP | G192: Summe von SPD | H192: Summe von Tierschutzpartei | I192: DIE LINKE | J192: Team Todenhöfer | K192: PIRATEN | L192: AfD | M192: Die PARTEI | N192: dieBasis | O192: Volt | P192: DKP | Q192: FREIE WÄHLER | R192: V-Partei³ | S192: NPD | T192: MLPD | U192: LIEBE | V192: LKR | W192: ÖDP | X192: Gesundheitsforschung | Y192: Die Humanisten | Z192: du. | AA192: PdF | AB192: LfK | AC192: SGP | AD192: Bündnis C
C193: Gesamte Schule | D193: 175 | E193: 166 | F193: 164 | G193: 62 | H193: 36 | I193: 11 | J193: 10 | K193: 9 | L193: 8 | M193: 7 | N193: 5 | O193: 5 | P193: 4 | Q193: 3 | R193: 3 | S193: 2 | T193: 2 | U193: 2 | V193: 2 | W193: 1 | X193: 1 | Y193: 1 | Z193: 1 | AA193: 1 | AB193: 1 | AC193: 0 | AD193: 0
C194: Unterstufe | D194: 66 | E194: 52 | F194: 12 | G194: 13 | H194: 24 | I194: 2 | J194: 0 | K194: 2 | L194: 5 | M194: 0 | N194: 0 | O194: 0 | P194: 2 | Q194: 0 | R194: 1 | S194: 0 | T194: 1 | U194: 0 | V194: 2 | W194: 0 | X194: 0 | Y194: 0 | Z194: 0 | AA194: 0 | AB194: 1 | AC194: 0 | AD194: 0
C195: Mittelstufe | D195: 65 | E195: 66 | F195: 78 | G195: 31 | H195: 8 | I195: 3 | J195: 8 | K195: 5 | L195: 3 | M195: 5 | N195: 4 | O195: 2 | P195: 1 | Q195: 2 | R195: 2 | S195: 1 | T195: 0 | U195: 2 | V195: 0 | W195: 0 | X195: 1 | Y195: 0 | Z195: 1 | AA195: 1 | AB195: 0 | AC195: 0 | AD195: 0
C196: Oberstufe | D196: 44 | E196: 48 | F196: 74 | G196: 18 | H196: 4 | I196: 6 | J196: 2 | K196: 2 | L196: 0 | M196: 2 | N196: 1 | O196: 3 | P196: 1 | Q196: 1 | R196: 0 | S196: 1 | T196: 1 | U196: 0 | V196: 0 | W196: 1 | X196: 0 | Y196: 1 | Z196: 0 | AA196: 0 | AB196: 0 | AC196: 0 | AD196: 0
C197: 5. Klasse | D197: 31 | E197: 24 | F197: 8 | G197: 4 | H197: 13 | I197: 2 | J197: 0 | K197: 1 | L197: 4 | M197: 0 | N197: 0 | O197: 0 | P197: 0 | Q197: 0 | R197: 0 | S197: 0 | T197: 1 | U197: 0 | V197: 2 | W197: 0 | X197: 0 | Y197: 0 | Z197: 0 | AA197: 0 | AB197: 0 | AC197: 0 | AD197: 0
C198: 6. Klasse | D198: 35 | E198: 28 | F198: 4 | G198: 9 | H198: 11 | I198: 0 | J198: 0 | K198: 1 | L198: 1 | M198: 0 | N198: 0 | O198: 0 | P198: 2 | Q198: 0 | R198: 1 | S198: 0 | T198: 0 | U198: 0 | V198: 0 | W198: 0 | X198: 0 | Y198: 0 | Z198: 0 | AA198: 0 | AB198: 1 | AC198: 0 | AD198: 0
C199: 7. Klasse | D199: 18 | E199: 22 | F199: 14 | G199: 13 | H199: 5 | I199: 1 | J199: 1 | K199: 2 | L199: 2 | M199: 3 | N199: 1 | O199: 0 | P199: 1 | Q199: 0 | R199: 0 | S199: 1 | T199: 0 | U199: 1 | V199: 0 | W199: 0 | X199: 1 | Y199: 0 | Z199: 0 | AA199: 0 | AB199: 0 | AC199: 0 | AD199: 0
C200: 8. Klasse | D200: 18 | E200: 23 | F200: 27 | G200: 9 | H200: 1 | I200: 1 | J200: 4 | K200: 2 | L200: 1 | M200: 2 | N200: 0 | O200: 0 | P200: 0 | Q200: 0 | R200: 0 | S200: 0 | T200: 0 | U200: 1 | V200: 0 | W200: 0 | X200: 0 | Y200: 0 | Z200: 1 | AA200: 0 | AB200: 0 | AC200: 0 | AD200: 0
C201: 9. Klasse | D201: 29 | E201: 21 | F201: 37 | G201: 9 | H201: 2 | I201: 1 | J201: 3 | K201: 1 | L201: 0 | M201: 0 | N201: 3 | O201: 2 | P201: 0 | Q201: 2 | R201: 2 | S201: 0 | T201: 0 | U201: 0 | V201: 0 | W201: 0 | X201: 0 | Y201: 0 | Z201: 0 | AA201: 1 | AB201: 0 | AC201: 0 | AD201: 0
C202: EF | D202: 17 | E202: 18 | F202: 20 | G202: 2 | H202: 1 | I202: 1 | J202: 1 | K202: 0 | L202: 0 | M202: 2 | N202: 0 | O202: 3 | P202: 0 | Q202: 1 | R202: 0 | S202: 0 | T202: 0 | U202: 0 | V202: 0 | W202: 0 | X202: 0 | Y202: 0 | Z202: 0 | AA202: 0 | AB202: 0 | AC202: 0 | AD202: 0
C203: Q1 | D203: 19 | E203: 18 | F203: 33 | G203: 7 | H203: 2 | I203: 5 | J203: 1 | K203: 2 | L203: 0 | M203: 0 | N203: 1 | O203: 0 | P203: 1 | Q203: 0 | R203: 0 | S203: 1 | T203: 0 | U203: 0 | V203: 0 | W203: 0 | X203: 0 | Y203: 0 | Z203: 0 | AA203: 0 | AB203: 0 | AC203: 0 | AD203: 0
C204: Q2 | D204: 8 | E204: 12 | F204: 21 | G204: 9 | H204: 1 | I204: 0 | J204: 0 | K204: 0 | L204: 0 | M204: 0 | N204: 0 | O204: 0 | P204: 0 | Q204: 0 | R204: 0 | S204: 0 | T204: 1 | U204: 0 | V204: 0 | W204: 1 | X204: 0 | Y204: 1 | Z204: 0 | AA204: 0 | AB204: 0 | AC204: 0 | AD204: 0

Sheet Daten-1 (hidden)
A1: Name | B1: Partei | C1: 5 | D1: 6 | E1: 7 | F1: 8 | G1: 9 | H1: EF | I1: Q1 | J1: Q2
A2: Matthias Hauer | B2: CDU | C2: 48 | D2: 51 | E2: 27 | F2: 41 | G2: 53 | H2: 31 | I2: 38 | J2: 20
A3: Dr. Gereon Wolters | B3: SPD | C3: 7 | D3: 11 | E3: 10 | F3: 9 | G3: 9 | H3: 9 | I3: 9 | J3: 8
A4: Rüdiger König | B4: FDP | C4: 8 | D4: 0 | E4: 9 | F4: 16 | G4: 21 | H4: 4 | I4: 23 | J4: 6
A5: Stefan Keute | B5: AfD | C5: 3 | D5: 1 | E5: 7 | F5: 1 | H5: 1 | J5: 0
A6: Kai Gehring | B6: GRÜNE | C6: 18 | D6: 26 | E6: 29 | F6: 15 | G6: 15 | H6: 12 | I6: 17 | J6: 12
A7: Ezgi Güyildar | B7: DIE LINKE | C7: 1 | F7: 1 | G7: 2 | H7: 2 | I7: 2 | J7: 1
A8: Martin Lange | B8: Die PARTEI | C8: 1 | E8: 6 | F8: 4 | G8: 6 | H8: 4 | I8: 1 | J8: 3
A9: Kai Hemsteeg | B9: FREIE WÄHLER | C9: 1 | D9: 1 | E9: 1 | F9: 0 | G9: 2 | J9: 1
A10: Dirk Willing | B10: MLPD | C10: 1 | F10: 1 | J10: 2
A11: Diana Kummer | B11: DKP | C11: 1 | D11: 2 | F11: 0 | J11: 0
A12: Volker Wild | B12: dieBasis | C12: 0 | E12: 1 | F12: 2 | G12: 2 | H12: 1 | J12: 1
A13: Dirk Schmidt | B13: LKR | C13: 1 | F13: 0 | J13: 0
A14: Ungültig | E14: 1

Sheet Analyse.1 (hidden)
O1: Diagramm | P1: Tabelle
A2: ID | B2: =_1Stimme[[#All],[Name]:[Partei]] -> Name | C2: Partei | D2: Name+Partei | E2: ='Daten-1'!C1:J13 -> 5 | F2: 6 | G2: 7 | H2: 8 | I2: 9 | J2: EF | K2: Q1 | L2: Q2 | N2: ABS?? | O2: FALSE | P2: TRUE | Q2: =IF(O2=TRUE,"Stimmen","% der Stimmen") -> % der Stimmen
A3: 1 | B3: Matthias Hauer | C3: CDU | D3: =B3&" ("&C3&")" -> Matthias Hauer (CDU) | E3: 48 | F3: 51 | G3: 27 | H3: 41 | I3: 53 | J3: 31 | K3: 38 | L3: 20 | N3: Alle Kandidaten?? | O3: FALSE | P3: TRUE
A4: 2 | B4: Dr. Gereon Wolters | C4: SPD | D4: =B4&" ("&C4&")" -> Dr. Gereon Wolters (SPD) | E4: 7 | F4: 11 | G4: 10 | H4: 9 | I4: 9 | J4: 9 | K4: 9 | L4: 8 | P4: =_xlfn.CONCAT(P2) -> WAHR
A5: 3 | B5: Rüdiger König | C5: FDP | D5: Rüdiger König (FDP) | E5: 8 | F5: 0 | G5: 9 | H5: 16 | I5: 21 | J5: 4 | K5: 23 | L5: 6 | O5: =_xlfn.CONCAT(O3) -> FALSCH | P5: =_xlfn.CONCAT(P3) -> WAHR
A6: 4 | B6: Stefan Keute | C6: AfD | D6: Stefan Keute (AfD) | E6: 3 | F6: 1 | G6: 7 | H6: 1 | I6: 0 | J6: 1 | K6: 0 | L6: 0 | N6: Mixed | P6: =P4&P5 -> WAHRWAHR
A7: 5 | B7: Kai Gehring | C7: GRÜNE | D7: Kai Gehring (GRÜNE) | E7: 18 | F7: 26 | G7: 29 | H7: 15 | I7: 15 | J7: 12 | K7: 17 | L7: 12 | N7: Nachkommastellen | P7: 4
A8: 6 | B8: Ezgi Güyildar | C8: DIE LINKE | D8: Ezgi Güyildar (DIE LINKE) | E8: 1 | F8: 0 | G8: 0 | H8: 1 | I8: 2 | J8: 2 | K8: 2 | L8: 1
A9: 7 | B9: Martin Lange | C9: Die PARTEI | D9: Martin Lange (Die PARTEI) | E9: 1 | F9: 0 | G9: 6 | H9: 4 | I9: 6 | J9: 4 | K9: 1 | L9: 3
A10: 8 | B10: Kai Hemsteeg | C10: FREIE WÄHLER | D10: Kai Hemsteeg (FREIE WÄHLER) | E10: 1 | F10: 1 | G10: 1 | H10: 0 | I10: 2 | J10: 0 | K10: 0 | L10: 1
A11: 9 | B11: Dirk Willing | C11: MLPD | D11: Dirk Willing (MLPD) | E11: 1 | F11: 0 | G11: 0 | H11: 1 | I11: 0 | J11: 0 | K11: 0 | L11: 2
A12: 10 | B12: Diana Kummer | C12: DKP | D12: Diana Kummer (DKP) | E12: 1 | F12: 2 | G12: 0 | H12: 0 | I12: 0 | J12: 0 | K12: 0 | L12: 0
A13: 11 | B13: Volker Wild | C13: dieBasis | D13: Volker Wild (dieBasis) | E13: 0 | F13: 0 | G13: 1 | H13: 2 | I13: 2 | J13: 1 | K13: 0 | L13: 1
A14: 12 | B14: Dirk Schmidt | C14: LKR | D14: Dirk Schmidt (LKR) | E14: 1 | F14: 0 | G14: 0 | H14: 0 | I14: 0 | J14: 0 | K14: 0 | L14: 0
B15: Ungültig | C15: 0
B17: Bereich | C17: =INDEX($D$3:$D$14,COLUMN(C17)-2) -> Matthias Hauer (CDU) | D17: =INDEX($D$3:$D$14,COLUMN(D17)-2) -> Dr. Gereon Wolters (SPD) | E17: =INDEX($D$3:$D$14,COLUMN(E17)-2) -> Rüdiger König (FDP) | F17: =INDEX($D$3:$D$14,COLUMN(F17)-2) -> Stefan Keute (AfD) | G17: =INDEX($D$3:$D$14,COLUMN(G17)-2) -> Kai Gehring (GRÜNE) | H17: =INDEX($D$3:$D$14,COLUMN(H17)-2) -> Ezgi Güyildar (DIE LINKE) | I17: =INDEX($D$3:$D$14,COLUMN(I17)-2) -> Martin Lange (Die PARTEI) | J17: =INDEX($D$3:$D$14,COLUMN(J17)-2) -> Kai Hemsteeg (FREIE WÄHLER) | K17: =INDEX($D$3:$D$14,COLUMN(K17)-2) -> Dirk Willing (MLPD) | L17: =INDEX($D$3:$D$14,COLUMN(L17)-2) -> Diana Kummer (DKP) | M17: =INDEX($D$3:$D$14,COLUMN(M17)-2) -> Volker Wild (dieBasis) | N17: =INDEX($D$3:$D$14,COLUMN(N17)-2) -> Dirk Schmidt (LKR)
B18: Gesamte Schule | C18: =SUM(C22:C29) -> 309 | D18: =SUM(D22:D29) -> 72 | E18: 87 | F18: 13 | G18: 144 | H18: 9 | I18: 25 | J18: 6 | K18: 4 | L18: 3 | M18: 7 | N18: 1
B19: Unterstufe | C19: =SUM(C22:C23) -> 99 | D19: =SUM(D22:D23) -> 18 | E19: 8 | F19: 4 | G19: 44 | H19: 1 | I19: 1 | J19: 2 | K19: 1 | L19: 3 | M19: 0 | N19: 1
B20: Mittelstufe | C20: =SUM(C24:C26) -> 121 | D20: =SUM(D24:D26) -> 28 | E20: 46 | F20: 8 | G20: 59 | H20: 3 | I20: 16 | J20: 3 | K20: 1 | L20: 0 | M20: 5 | N20: 0
B21: Oberstufe | C21: =SUM(C27:C29) -> 89 | D21: =SUM(D27:D29) -> 26 | E21: 33 | F21: 1 | G21: 41 | H21: 5 | I21: 8 | J21: 1 | K21: 2 | L21: 0 | M21: 2 | N21: 0
A22: 5 | B22: 5. Klasse | C22: =INDEX($E$3:$L$14,MATCH(C$17,$D$3:$D$14,0),MATCH($A22,$E$2:$L$2,0)) -> 48 | D22: =INDEX($E$3:$L$14,MATCH(D$17,$D$3:$D$14,0),MATCH($A22,$E$2:$L$2,0)) -> 7 | E22: =INDEX($E$3:$L$14,MATCH(E$17,$D$3:$D$14,0),MATCH($A22,$E$2:$L$2,0)) -> 8 | F22: 3 | G22: 18 | H22: 1 | I22: 1 | J22: 1 | K22: 1 | L22: 1 | M22: 0 | N22: 1
A23: 6 | B23: 6. Klasse | C23: =INDEX($E$3:$L$14,MATCH(C$17,$D$3:$D$14,0),MATCH($A23,$E$2:$L$2,0)) -> 51 | D23: 11 | E23: 0 | F23: 1 | G23: 26 | H23: 0 | I23: 0 | J23: 1 | K23: 0 | L23: 2 | M23: 0 | N23: 0
A24: 7 | B24: 7. Klasse | C24: 27 | D24: 10 | E24: 9 | F24: 7 | G24: 29 | H24: 0 | I24: 6 | J24: 1 | K24: 0 | L24: 0 | M24: 1 | N24: 0
A25: 8 | B25: 8. Klasse | C25: 41 | D25: 9 | E25: 16 | F25: 1 | G25: 15 | H25: 1 | I25: 4 | J25: 0 | K25: 1 | L25: 0 | M25: 2 | N25: 0
A26: 9 | B26: 9. Klasse | C26: 53 | D26: 9 | E26: 21 | F26: 0 | G26: 15 | H26: 2 | I26: 6 | J26: 2 | K26: 0 | L26: 0 | M26: 2 | N26: 0
A27: EF | B27: EF | C27: 31 | D27: 9 | E27: 4 | F27: 1 | G27: 12 | H27: 2 | I27: 4 | J27: 0 | K27: 0 | L27: 0 | M27: 1 | N27: 0
A28: Q1 | B28: Q1 | C28: =INDEX($E$3:$L$14,MATCH(C$17,$D$3:$D$14,0),MATCH($A28,$E$2:$L$2,0)) -> 38 | D28: =INDEX($E$3:$L$14,MATCH(D$17,$D$3:$D$14,0),MATCH($A28,$E$2:$L$2,0)) -> 9 | E28: 23 | F28: 0 | G28: 17 | H28: 2 | I28: 1 | J28: 0 | K28: 0 | L28: 0 | M28: 0 | N28: 0
A29: Q2 | B29: Q2 | C29: 20 | D29: 8 | E29: 6 | F29: 0 | G29: 12 | H29: 1 | I29: 3 | J29: 1 | K29: 2 | L29: 0 | M29: 1 | N29: 0
C31: =_xlfn.SORTBY(C36:N36,C37:N37,-1) -> Matthias Hauer (CDU) | D31: Kai Gehring (GRÜNE) | E31: Rüdiger König (FDP) | F31: Dr. Gereon Wolters (SPD) | G31: Martin Lange (Die PARTEI) | H31: Stefan Keute (AfD) | I31: Ezgi Güyildar (DIE LINKE) | J31: Volker Wild (dieBasis) | K31: Kai Hemsteeg (FREIE WÄHLER) | L31: Dirk Willing (MLPD) | M31: Diana Kummer (DKP) | N31: Dirk Schmidt (LKR)
C32: =INDEX($C$37:$N$37,,MATCH(C31,$C$36:$N$36,0)) -> 309 | D32: =INDEX($C$37:$N$37,,MATCH(D31,$C$36:$N$36,0)) -> 144 | E32: =INDEX($C$37:$N$37,,MATCH(E31,$C$36:$N$36,0)) -> 87 | F32: =INDEX($C$37:$N$37,,MATCH(F31,$C$36:$N$36,0)) -> 72 | G32: =INDEX($C$37:$N$37,,MATCH(G31,$C$36:$N$36,0)) -> 25 | H32: =INDEX($C$37:$N$37,,MATCH(H31,$C$36:$N$36,0)) -> 13 | I32: =INDEX($C$37:$N$37,,MATCH(I31,$C$36:$N$36,0)) -> 9 | J32: =INDEX($C$37:$N$37,,MATCH(J31,$C$36:$N$36,0)) -> 7 | K32: =INDEX($C$37:$N$37,,MATCH(K31,$C$36:$N$36,0)) -> 6 | L32: =INDEX($C$37:$N$37,,MATCH(L31,$C$36:$N$36,0)) -> 4 | M32: =INDEX($C$37:$N$37,,MATCH(M31,$C$36:$N$36,0)) -> 3 | N32: =INDEX($C$37:$N$37,,MATCH(N31,$C$36:$N$36,0)) -> 1
B34: Ranking | C34: =MATCH(C36,_xlfn.ANCHORARRAY($C$31),0) -> 1 | D34: =MATCH(D36,_xlfn.ANCHORARRAY($C$31),0) -> 4 | E34: 3 | F34: 6 | G34: 2 | H34: 7 | I34: 5 | J34: 9 | K34: 10 | L34: 11 | M34: 8 | N34: 12
B36: Zeilenbeschriftungen | C36: Matthias Hauer (CDU) | D36: Dr. Gereon Wolters (SPD) | E36: Rüdiger König (FDP) | F36: Stefan Keute (AfD) | G36: Kai Gehring (GRÜNE) | H36: Ezgi Güyildar (DIE LINKE) | I36: Martin Lange (Die PARTEI) | J36: Kai Hemsteeg (FREIE WÄHLER) | K36: Dirk Willing (MLPD) | L36: Diana Kummer (DKP) | M36: Volker Wild (dieBasis) | N36: Dirk Schmidt (LKR)
B37: Gesamte Schule | C37: 309 | D37: 72 | E37: 87 | F37: 13 | G37: 144 | H37: 9 | I37: 25 | J37: 6 | K37: 4 | L37: 3 | M37: 7 | N37: 1
B38: Unterstufe | C38: 99 | D38: 18 | E38: 8 | F38: 4 | G38: 44 | H38: 1 | I38: 1 | J38: 2 | K38: 1 | L38: 3 | M38: 0 | N38: 1
B39: Mittelstufe | C39: 121 | D39: 28 | E39: 46 | F39: 8 | G39: 59 | H39: 3 | I39: 16 | J39: 3 | K39: 1 | L39: 0 | M39: 5 | N39: 0
B40: Oberstufe | C40: 89 | D40: 26 | E40: 33 | F40: 1 | G40: 41 | H40: 5 | I40: 8 | J40: 1 | K40: 2 | L40: 0 | M40: 2 | N40: 0
B41: 5. Klasse | C41: 48 | D41: 7 | E41: 8 | F41: 3 | G41: 18 | H41: 1 | I41: 1 | J41: 1 | K41: 1 | L41: 1 | M41: 0 | N41: 1
B42: 6. Klasse | C42: 51 | D42: 11 | E42: 0 | F42: 1 | G42: 26 | H42: 0 | I42: 0 | J42: 1 | K42: 0 | L42: 2 | M42: 0 | N42: 0
B43: 7. Klasse | C43: 27 | D43: 10 | E43: 9 | F43: 7 | G43: 29 | H43: 0 | I43: 6 | J43: 1 | K43: 0 | L43: 0 | M43: 1 | N43: 0
B44: 8. Klasse | C44: 41 | D44: 9 | E44: 16 | F44: 1 | G44: 15 | H44: 1 | I44: 4 | J44: 0 | K44: 1 | L44: 0 | M44: 2 | N44: 0
B45: 9. Klasse | C45: 53 | D45: 9 | E45: 21 | F45: 0 | G45: 15 | H45: 2 | I45: 6 | J45: 2 | K45: 0 | L45: 0 | M45: 2 | N45: 0
B46: EF | C46: 31 | D46: 9 | E46: 4 | F46: 1 | G46: 12 | H46: 2 | I46: 4 | J46: 0 | K46: 0 | L46: 0 | M46: 1 | N46: 0
B47: Q1 | C47: 38 | D47: 9 | E47: 23 | F47: 0 | G47: 17 | H47: 2 | I47: 1 | J47: 0 | K47: 0 | L47: 0 | M47: 0 | N47: 0
B48: Q2 | C48: 20 | D48: 8 | E48: 6 | F48: 0 | G48: 12 | H48: 1 | I48: 3 | J48: 1 | K48: 2 | L48: 0 | M48: 1 | N48: 0
B50: =B36:B48 -> Zeilenbeschriftungen | C50: =_xlfn.SORTBY(C36:N48,C34:N34) -> Matthias Hauer (CDU) | D50: Kai Gehring (GRÜNE) | E50: Rüdiger König (FDP) | F50: Dr. Gereon Wolters (SPD) | G50: Martin Lange (Die PARTEI) | H50: Stefan Keute (AfD) | I50: Ezgi Güyildar (DIE LINKE) | J50: Volker Wild (dieBasis) | K50: Kai Hemsteeg (FREIE WÄHLER) | L50: Dirk Willing (MLPD) | M50: Diana Kummer (DKP) | N50: Dirk Schmidt (LKR)
B51: Gesamte Schule | C51: 309 | D51: 144 | E51: 87 | F51: 72 | G51: 25 | H51: 13 | I51: 9 | J51: 7 | K51: 6 | L51: 4 | M51: 3 | N51: 1
B52: Unterstufe | C52: 99 | D52: 44 | E52: 8 | F52: 18 | G52: 1 | H52: 4 | I52: 1 | J52: 0 | K52: 2 | L52: 1 | M52: 3 | N52: 1
B53: Mittelstufe | C53: 121 | D53: 59 | E53: 46 | F53: 28 | G53: 16 | H53: 8 | I53: 3 | J53: 5 | K53: 3 | L53: 1 | M53: 0 | N53: 0
B54: Oberstufe | C54: 89 | D54: 41 | E54: 33 | F54: 26 | G54: 8 | H54: 1 | I54: 5 | J54: 2 | K54: 1 | L54: 2 | M54: 0 | N54: 0
B55: 5. Klasse | C55: 48 | D55: 18 | E55: 8 | F55: 7 | G55: 1 | H55: 3 | I55: 1 | J55: 0 | K55: 1 | L55: 1 | M55: 1 | N55: 1
B56: 6. Klasse | C56: 51 | D56: 26 | E56: 0 | F56: 11 | G56: 0 | H56: 1 | I56: 0 | J56: 0 | K56: 1 | L56: 0 | M56: 2 | N56: 0
B57: 7. Klasse | C57: 27 | D57: 29 | E57: 9 | F57: 10 | G57: 6 | H57: 7 | I57: 0 | J57: 1 | K57: 1 | L57: 0 | M57: 0 | N57: 0
B58: 8. Klasse | C58: 41 | D58: 15 | E58: 16 | F58: 9 | G58: 4 | H58: 1 | I58: 1 | J58: 2 | K58: 0 | L58: 1 | M58: 0 | N58: 0
B59: 9. Klasse | C59: 53 | D59: 15 | E59: 21 | F59: 9 | G59: 6 | H59: 0 | I59: 2 | J59: 2 | K59: 2 | L59: 0 | M59: 0 | N59: 0
B60: EF | C60: 31 | D60: 12 | E60: 4 | F60: 9 | G60: 4 | H60: 1 | I60: 2 | J60: 1 | K60: 0 | L60: 0 | M60: 0 | N60: 0
B61: Q1 | C61: 38 | D61: 17 | E61: 23 | F61: 9 | G61: 1 | H61: 0 | I61: 2 | J61: 0 | K61: 0 | L61: 0 | M61: 0 | N61: 0
B62: Q2 | C62: 20 | D62: 12 | E62: 6 | F62: 8 | G62: 3 | H62: 0 | I62: 1 | J62: 1 | K62: 1 | L62: 2 | M62: 0 | N62: 0
B64: =_xlfn.ANCHORARRAY(B50) -> Zeilenbeschriftungen | C64: =C50:N50 -> Matthias Hauer (CDU) | D64: Kai Gehring (GRÜNE) | E64: Rüdiger König (FDP) | F64: Dr. Gereon Wolters (SPD) | G64: Martin Lange (Die PARTEI) | H64: Stefan Keute (AfD) | I64: Ezgi Güyildar (DIE LINKE) | J64: Volker Wild (dieBasis) | K64: Kai Hemsteeg (FREIE WÄHLER) | L64: Dirk Willing (MLPD) | M64: Diana Kummer (DKP) | N64: Dirk Schmidt (LKR)
B65: Gesamte Schule | C65: =IF($O$2=TRUE,C51,C51/SUM($C51:$N51)*100) -> 45.44117647 | D65: =IF($O$2=TRUE,D51,D51/SUM($C51:$N51)*100) -> 21.17647059 | E65: 12.79411765 | F65: 10.58823529 | G65: 3.676470588 | H65: 1.911764706 | I65: 1.323529412 | J65: 1.029411765 | K65: 0.8823529412 | L65: 0.5882352941 | M65: 0.4411764706 | N65: 0.1470588235
B66: Unterstufe | C66: =IF($O$2=TRUE,C52,C52/SUM($C52:$N52)*100) -> 54.3956044 | D66: 24.17582418 | E66: 4.395604396 | F66: 9.89010989 | G66: 0.5494505495 | H66: 2.197802198 | I66: 0.5494505495 | J66: 0 | K66: 1.098901099 | L66: 0.5494505495 | M66: 1.648351648 | N66: 0.5494505495
B67: Mittelstufe | C67: 41.72413793 | D67: 20.34482759 | E67: 15.86206897 | F67: 9.655172414 | G67: 5.517241379 | H67: 2.75862069 | I67: 1.034482759 | J67: 1.724137931 | K67: 1.034482759 | L67: 0.3448275862 | M67: 0 | N67: 0
B68: Oberstufe | C68: 42.78846154 | D68: 19.71153846 | E68: 15.86538462 | F68: 12.5 | G68: 3.846153846 | H68: 0.4807692308 | I68: 2.403846154 | J68: 0.9615384615 | K68: 0.4807692308 | L68: 0.9615384615 | M68: 0 | N68: 0
B69: 5. Klasse | C69: 53.33333333 | D69: 20 | E69: 8.888888889 | F69: 7.777777778 | G69: 1.111111111 | H69: 3.333333333 | I69: 1.111111111 | J69: 0 | K69: 1.111111111 | L69: 1.111111111 | M69: 1.111111111 | N69: 1.111111111
B70: 6. Klasse | C70: 55.43478261 | D70: 28.26086957 | E70: 0 | F70: 11.95652174 | G70: 0 | H70: 1.086956522 | I70: 0 | J70: 0 | K70: 1.086956522 | L70: 0 | M70: 2.173913043 | N70: 0
B71: 7. Klasse | C71: 30 | D71: 32.22222222 | E71: 10 | F71: 11.11111111 | G71: 6.666666667 | H71: 7.777777778 | I71: 0 | J71: 1.111111111 | K71: 1.111111111 | L71: 0 | M71: 0 | N71: 0
B72: 8. Klasse | C72: 45.55555556 | D72: 16.66666667 | E72: 17.77777778 | F72: 10 | G72: 4.444444444 | H72: 1.111111111 | I72: 1.111111111 | J72: 2.222222222 | K72: 0 | L72: 1.111111111 | M72: 0 | N72: 0
B73: 9. Klasse | C73: 48.18181818 | D73: 13.63636364 | E73: 19.09090909 | F73: 8.181818182 | G73: 5.454545455 | H73: 0 | I73: 1.818181818 | J73: 1.818181818 | K73: 1.818181818 | L73: 0 | M73: 0 | N73: 0
B74: EF | C74: 48.4375 | D74: 18.75 | E74: 6.25 | F74: 14.0625 | G74: 6.25 | H74: 1.5625 | I74: 3.125 | J74: 1.5625 | K74: 0 | L74: 0 | M74: 0 | N74: 0
B75: Q1 | C75: 42.22222222 | D75: 18.88888889 | E75: 25.55555556 | F75: 10 | G75: 1.111111111 | H75: 0 | I75: 2.222222222 | J75: 0 | K75: 0 | L75: 0 | M75: 0 | N75: 0
B76: Q2 | C76: 37.03703704 | D76: 22.22222222 | E76: 11.11111111 | F76: 14.81481481 | G76: 5.555555556 | H76: 0 | I76: 1.851851852 | J76: 1.851851852 | K76: 1.851851852 | L76: 3.703703704 | M76: 0 | N76: 0
B79: =OFFSET(B64:N76,,,ROWS(_xlfn.ANCHORARRAY(B64))-COUNTIF(_xlfn.ANCHORARRAY(B64),0),IF(O3=FALSE,6,COLUMNS(B64:N64))) -> Zeilenbeschriftungen | C79: Matthias Hauer (CDU) | D79: Kai Gehring (GRÜNE) | E79: Rüdiger König (FDP) | F79: Dr. Gereon Wolters (SPD) | G79: Martin Lange (Die PARTEI) | P79: =_1.Stimme_Bereich -> Zeilenbeschriftungen | Q79: Matthias Hauer (CDU) | R79: Kai Gehring (GRÜNE) | S79: Rüdiger König (FDP) | T79: Dr. Gereon Wolters (SPD) | U79: Martin Lange (Die PARTEI)
B80: Gesamte Schule | C80: 45.44117647 | D80: 21.17647059 | E80: 12.79411765 | F80: 10.58823529 | G80: 3.676470588 | P80: Gesamte Schule | Q80: 45.44117647 | R80: 21.17647059 | S80: 12.79411765 | T80: 10.58823529 | U80: 3.676470588
B81: Unterstufe | C81: 54.3956044 | D81: 24.17582418 | E81: 4.395604396 | F81: 9.89010989 | G81: 0.5494505495 | P81: Unterstufe | Q81: 54.3956044 | R81: 24.17582418 | S81: 4.395604396 | T81: 9.89010989 | U81: 0.5494505495
B82: Mittelstufe | C82: 41.72413793 | D82: 20.34482759 | E82: 15.86206897 | F82: 9.655172414 | G82: 5.517241379 | P82: Mittelstufe | Q82: 41.72413793 | R82: 20.34482759 | S82: 15.86206897 | T82: 9.655172414 | U82: 5.517241379
B83: Oberstufe | C83: 42.78846154 | D83: 19.71153846 | E83: 15.86538462 | F83: 12.5 | G83: 3.846153846 | P83: Oberstufe | Q83: 42.78846154 | R83: 19.71153846 | S83: 15.86538462 | T83: 12.5 | U83: 3.846153846
B84: 5. Klasse | C84: 53.33333333 | D84: 20 | E84: 8.888888889 | F84: 7.777777778 | G84: 1.111111111 | P84: 5. Klasse | Q84: 53.33333333 | R84: 20 | S84: 8.888888889 | T84: 7.777777778 | U84: 1.111111111
B85: 6. Klasse | C85: 55.43478261 | D85: 28.26086957 | E85: 0 | F85: 11.95652174 | G85: 0 | P85: 6. Klasse | Q85: 55.43478261 | R85: 28.26086957 | S85: 0 | T85: 11.95652174 | U85: 0
B86: 7. Klasse | C86: 30 | D86: 32.22222222 | E86: 10 | F86: 11.11111111 | G86: 6.666666667 | P86: 7. Klasse | Q86: 30 | R86: 32.22222222 | S86: 10 | T86: 11.11111111 | U86: 6.666666667
B87: 8. Klasse | C87: 45.55555556 | D87: 16.66666667 | E87: 17.77777778 | F87: 10 | G87: 4.444444444 | P87: 8. Klasse | Q87: 45.55555556 | R87: 16.66666667 | S87: 17.77777778 | T87: 10 | U87: 4.444444444
B88: 9. Klasse | C88: 48.18181818 | D88: 13.63636364 | E88: 19.09090909 | F88: 8.181818182 | G88: 5.454545455 | P88: 9. Klasse | Q88: 48.18181818 | R88: 13.63636364 | S88: 19.09090909 | T88: 8.181818182 | U88: 5.454545455
B89: EF | C89: 48.4375 | D89: 18.75 | E89: 6.25 | F89: 14.0625 | G89: 6.25 | P89: EF | Q89: 48.4375 | R89: 18.75 | S89: 6.25 | T89: 14.0625 | U89: 6.25
B90: Q1 | C90: 42.22222222 | D90: 18.88888889 | E90: 25.55555556 | F90: 10 | G90: 1.111111111 | P90: Q1 | Q90: 42.22222222 | R90: 18.88888889 | S90: 25.55555556 | T90: 10 | U90: 1.111111111
B91: Q2 | C91: 37.03703704 | D91: 22.22222222 | E91: 11.11111111 | F91: 14.81481481 | G91: 5.555555556 | P91: Q2 | Q91: 37.03703704 | R91: 22.22222222 | S91: 11.11111111 | T91: 14.81481481 | U91: 5.555555556
B94: Zeilenbeschriftungen | C94: Matthias Hauer (CDU) | D94: Rüdiger König (FDP) | E94: Kai Gehring (GRÜNE) | F94: Dr. Gereon Wolters (SPD) | G94: Martin Lange (Die PARTEI)
B95: Gesamte Schule | C95: 45.44117647 | D95: 12.79411765 | E95: 21.17647059 | F95: 10.58823529 | G95: 3.676470588
B96: Unterstufe | C96: 54.3956044 | D96: 4.395604396 | E96: 24.17582418 | F96: 9.89010989 | G96: 0.5494505495
B97: Mittelstufe | C97: 41.72413793 | D97: 15.86206897 | E97: 20.34482759 | F97: 9.655172414 | G97: 5.517241379
B98: Oberstufe | C98: 42.78846154 | D98: 15.86538462 | E98: 19.71153846 | F98: 12.5 | G98: 3.846153846
B99: 5. Klasse | C99: 53.33333333 | D99: 8.888888889 | E99: 20 | F99: 7.777777778 | G99: 1.111111111
B100: 6. Klasse | C100: 55.43478261 | D100: 0 | E100: 28.26086957 | F100: 11.95652174 | G100: 0
B101: 7. Klasse | C101: 30 | D101: 10 | E101: 32.22222222 | F101: 11.11111111 | G101: 6.666666667
B102: 8. Klasse | C102: 45.55555556 | D102: 17.77777778 | E102: 16.66666667 | F102: 10 | G102: 4.444444444
B103: 9. Klasse | C103: 48.18181818 | D103: 19.09090909 | E103: 13.63636364 | F103: 8.181818182 | G103: 5.454545455
B104: EF | C104: 48.4375 | D104: 6.25 | E104: 18.75 | F104: 14.0625 | G104: 6.25
B105: Q1 | C105: 42.22222222 | D105: 25.55555556 | E105: 18.88888889 | F105: 10 | G105: 1.111111111
B106: Q2 | C106: 37.03703704 | D106: 11.11111111 | E106: 22.22222222 | F106: 14.81481481 | G106: 5.555555556
B110: =_xlfn.ANCHORARRAY(B64) -> Zeilenbeschriftungen | C110: =_xlfn.ANCHORARRAY(C64) -> Matthias Hauer (CDU) | D110: Kai Gehring (GRÜNE) | E110: Rüdiger König (FDP) | F110: Dr. Gereon Wolters (SPD) | G110: Martin Lange (Die PARTEI) | H110: Stefan Keute (AfD) | I110: Ezgi Güyildar (DIE LINKE) | J110: Volker Wild (dieBasis) | K110: Kai Hemsteeg (FREIE WÄHLER) | L110: Dirk Willing (MLPD) | M110: Diana Kummer (DKP) | N110: Dirk Schmidt (LKR)
B111: Gesamte Schule | C111: =IF($P$2=TRUE,C51,ROUND(C51/SUM($C51:$N51),$P$7)) -> 309 | D111: =IF($P$2=TRUE,D51,ROUND(D51/SUM($C51:$N51),$P$7)) -> 144 | E111: 87 | F111: 72 | G111: 25 | H111: 13 | I111: 9 | J111: 7 | K111: 6 | L111: 4 | M111: 3 | N111: 1
B112: Unterstufe | C112: =IF($P$2=TRUE,C52,ROUND(C52/SUM($C52:$N52),$P$7)) -> 99 | D112: 44 | E112: 8 | F112: 18 | G112: 1 | H112: 4 | I112: 1 | J112: 0 | K112: 2 | L112: 1 | M112: 3 | N112: 1
B113: Mittelstufe | C113: 121 | D113: 59 | E113: 46 | F113: 28 | G113: 16 | H113: 8 | I113: 3 | J113: 5 | K113: 3 | L113: 1 | M113: 0 | N113: 0
B114: Oberstufe | C114: 89 | D114: 41 | E114: 33 | F114: 26 | G114: 8 | H114: 1 | I114: 5 | J114: 2 | K114: 1 | L114: 2 | M114: 0 | N114: 0
B115: 5. Klasse | C115: 48 | D115: 18 | E115: 8 | F115: 7 | G115: 1 | H115: 3 | I115: 1 | J115: 0 | K115: 1 | L115: 1 | M115: 1 | N115: 1
B116: 6. Klasse | C116: 51 | D116: 26 | E116: 0 | F116: 11 | G116: 0 | H116: 1 | I116: 0 | J116: 0 | K116: 1 | L116: 0 | M116: 2 | N116: 0
B117: 7. Klasse | C117: 27 | D117: 29 | E117: 9 | F117: 10 | G117: 6 | H117: 7 | I117: 0 | J117: 1 | K117: 1 | L117: 0 | M117: 0 | N117: 0
B118: 8. Klasse | C118: 41 | D118: 15 | E118: 16 | F118: 9 | G118: 4 | H118: 1 | I118: 1 | J118: 2 | K118: 0 | L118: 1 | M118: 0 | N118: 0
B119: 9. Klasse | C119: 53 | D119: 15 | E119: 21 | F119: 9 | G119: 6 | H119: 0 | I119: 2 | J119: 2 | K119: 2 | L119: 0 | M119: 0 | N119: 0
B120: EF | C120: 31 | D120: 12 | E120: 4 | F120: 9 | G120: 4 | H120: 1 | I120: 2 | J120: 1 | K120: 0 | L120: 0 | M120: 0 | N120: 0
B121: Q1 | C121: 38 | D121: 17 | E121: 23 | F121: 9 | G121: 1 | H121: 0 | I121: 2 | J121: 0 | K121: 0 | L121: 0 | M121: 0 | N121: 0
B122: Q2 | C122: 20 | D122: 12 | E122: 6 | F122: 8 | G122: 3 | H122: 0 | I122: 1 | J122: 1 | K122: 1 | L122: 2 | M122: 0 | N122: 0
B124: =OFFSET(B110:N122,,,ROWS(_xlfn.ANCHORARRAY(B110))-COUNTIF(_xlfn.ANCHORARRAY(B110),0),IF(P3=FALSE,6,COLUMNS(B110:N110))) -> Zeilenbeschriftungen | C124: Matthias Hauer (CDU) | D124: Kai Gehring (GRÜNE) | E124: Rüdiger König (FDP) | F124: Dr. Gereon Wolters (SPD) | G124: Martin Lange (Die PARTEI) | H124: Stefan Keute (AfD) | I124: Ezgi Güyildar (DIE LINKE) | J124: Volker Wild (dieBasis) | K124: Kai Hemsteeg (FREIE WÄHLER) | L124: Dirk Willing (MLPD) | M124: Diana Kummer (DKP) | N124: Dirk Schmidt (LKR)
B125: Gesamte Schule | C125: 309 | D125: 144 | E125: 87 | F125: 72 | G125: 25 | H125: 13 | I125: 9 | J125: 7 | K125: 6 | L125: 4 | M125: 3 | N125: 1
B126: Unterstufe | C126: 99 | D126: 44 | E126: 8 | F126: 18 | G126: 1 | H126: 4 | I126: 1 | J126: 0 | K126: 2 | L126: 1 | M126: 3 | N126: 1
B127: Mittelstufe | C127: 121 | D127: 59 | E127: 46 | F127: 28 | G127: 16 | H127: 8 | I127: 3 | J127: 5 | K127: 3 | L127: 1 | M127: 0 | N127: 0
B128: Oberstufe | C128: 89 | D128: 41 | E128: 33 | F128: 26 | G128: 8 | H128: 1 | I128: 5 | J128: 2 | K128: 1 | L128: 2 | M128: 0 | N128: 0
B129: 5. Klasse | C129: 48 | D129: 18 | E129: 8 | F129: 7 | G129: 1 | H129: 3 | I129: 1 | J129: 0 | K129: 1 | L129: 1 | M129: 1 | N129: 1
B130: 6. Klasse | C130: 51 | D130: 26 | E130: 0 | F130: 11 | G130: 0 | H130: 1 | I130: 0 | J130: 0 | K130: 1 | L130: 0 | M130: 2 | N130: 0
B131: 7. Klasse | C131: 27 | D131: 29 | E131: 9 | F131: 10 | G131: 6 | H131: 7 | I131: 0 | J131: 1 | K131: 1 | L131: 0 | M131: 0 | N131: 0
B132: 8. Klasse | C132: 41 | D132: 15 | E132: 16 | F132: 9 | G132: 4 | H132: 1 | I132: 1 | J132: 2 | K132: 0 | L132: 1 | M132: 0 | N132: 0
B133: 9. Klasse | C133: 53 | D133: 15 | E133: 21 | F133: 9 | G133: 6 | H133: 0 | I133: 2 | J133: 2 | K133: 2 | L133: 0 | M133: 0 | N133: 0
B134: EF | C134: 31 | D134: 12 | E134: 4 | F134: 9 | G134: 4 | H134: 1 | I134: 2 | J134: 1 | K134: 0 | L134: 0 | M134: 0 | N134: 0
B135: Q1 | C135: 38 | D135: 17 | E135: 23 | F135: 9 | G135: 1 | H135: 0 | I135: 2 | J135: 0 | K135: 0 | L135: 0 | M135: 0 | N135: 0
B136: Q2 | C136: 20 | D136: 12 | E136: 6 | F136: 8 | G136: 3 | H136: 0 | I136: 1 | J136: 1 | K136: 1 | L136: 2 | M136: 0 | N136: 0
B140: =B124:B136 -> Zeilenbeschriftungen | C140: =C124:N124 -> Matthias Hauer (CDU) | D140: Kai Gehring (GRÜNE) | E140: Rüdiger König (FDP) | F140: Dr. Gereon Wolters (SPD) | G140: Martin Lange (Die PARTEI) | H140: Stefan Keute (AfD) | I140: Ezgi Güyildar (DIE LINKE) | J140: Volker Wild (dieBasis) | K140: Kai Hemsteeg (FREIE WÄHLER) | L140: Dirk Willing (MLPD) | M140: Diana Kummer (DKP) | N140: Dirk Schmidt (LKR)
B141: Gesamte Schule | C141: =OFFSET(Analyse.1!$C$125:$N$136,,,,COUNTA(Analyse.1!$C$124:$N$124)) -> 309 | D141: 144 | E141: 87 | F141: 72 | G141: 25 | H141: 13 | I141: 9 | J141: 7 | K141: 6 | L141: 4 | M141: 3 | N141: 1
B142: Unterstufe | C142: 99 | D142: 44 | E142: 8 | F142: 18 | G142: 1 | H142: 4 | I142: 1 | J142: 0 | K142: 2 | L142: 1 | M142: 3 | N142: 1
B143: Mittelstufe | C143: 121 | D143: 59 | E143: 46 | F143: 28 | G143: 16 | H143: 8 | I143: 3 | J143: 5 | K143: 3 | L143: 1 | M143: 0 | N143: 0
B144: Oberstufe | C144: 89 | D144: 41 | E144: 33 | F144: 26 | G144: 8 | H144: 1 | I144: 5 | J144: 2 | K144: 1 | L144: 2 | M144: 0 | N144: 0
B145: 5. Klasse | C145: 48 | D145: 18 | E145: 8 | F145: 7 | G145: 1 | H145: 3 | I145: 1 | J145: 0 | K145: 1 | L145: 1 | M145: 1 | N145: 1
B146: 6. Klasse | C146: 51 | D146: 26 | E146: 0 | F146: 11 | G146: 0 | H146: 1 | I146: 0 | J146: 0 | K146: 1 | L146: 0 | M146: 2 | N146: 0
B147: 7. Klasse | C147: 27 | D147: 29 | E147: 9 | F147: 10 | G147: 6 | H147: 7 | I147: 0 | J147: 1 | K147: 1 | L147: 0 | M147: 0 | N147: 0
B148: 8. Klasse | C148: 41 | D148: 15 | E148: 16 | F148: 9 | G148: 4 | H148: 1 | I148: 1 | J148: 2 | K148: 0 | L148: 1 | M148: 0 | N148: 0
B149: 9. Klasse | C149: 53 | D149: 15 | E149: 21 | F149: 9 | G149: 6 | H149: 0 | I149: 2 | J149: 2 | K149: 2 | L149: 0 | M149: 0 | N149: 0
B150: EF | C150: 31 | D150: 12 | E150: 4 | F150: 9 | G150: 4 | H150: 1 | I150: 2 | J150: 1 | K150: 0 | L150: 0 | M150: 0 | N150: 0
B151: Q1 | C151: 38 | D151: 17 | E151: 23 | F151: 9 | G151: 1 | H151: 0 | I151: 2 | J151: 0 | K151: 0 | L151: 0 | M151: 0 | N151: 0
B152: Q2 | C152: 20 | D152: 12 | E152: 6 | F152: 8 | G152: 3 | H152: 0 | I152: 1 | J152: 1 | K152: 1 | L152: 2 | M152: 0 | N152: 0
B154: Zeilenbeschriftungen | C154: Matthias Hauer (CDU) | D154: Kai Gehring (GRÜNE) | E154: Rüdiger König (FDP) | F154: Dr. Gereon Wolters (SPD) | G154: Martin Lange (Die PARTEI) | H154: Stefan Keute (AfD) | I154: Ezgi Güyildar (DIE LINKE) | J154: Volker Wild (dieBasis) | K154: Kai Hemsteeg (FREIE WÄHLER) | L154: Dirk Willing (MLPD) | M154: Diana Kummer (DKP) | N154: Dirk Schmidt (LKR)
B155: Gesamte Schule | C155: 309 | D155: 144 | E155: 87 | F155: 72 | G155: 25 | H155: 13 | I155: 9 | J155: 7 | K155: 6 | L155: 4 | M155: 3 | N155: 1
B156: Unterstufe | C156: 99 | D156: 44 | E156: 8 | F156: 18 | G156: 1 | H156: 4 | I156: 1 | J156: 0 | K156: 2 | L156: 1 | M156: 3 | N156: 1
B157: Mittelstufe | C157: 121 | D157: 59 | E157: 46 | F157: 28 | G157: 16 | H157: 8 | I157: 3 | J157: 5 | K157: 3 | L157: 1 | M157: 0 | N157: 0
B158: Oberstufe | C158: 89 | D158: 41 | E158: 33 | F158: 26 | G158: 8 | H158: 1 | I158: 5 | J158: 2 | K158: 1 | L158: 2 | M158: 0 | N158: 0
B159: 5. Klasse | C159: 48 | D159: 18 | E159: 8 | F159: 7 | G159: 1 | H159: 3 | I159: 1 | J159: 0 | K159: 1 | L159: 1 | M159: 1 | N159: 1
B160: 6. Klasse | C160: 51 | D160: 26 | E160: 0 | F160: 11 | G160: 0 | H160: 1 | I160: 0 | J160: 0 | K160: 1 | L160: 0 | M160: 2 | N160: 0
B161: 7. Klasse | C161: 27 | D161: 29 | E161: 9 | F161: 10 | G161: 6 | H161: 7 | I161: 0 | J161: 1 | K161: 1 | L161: 0 | M161: 0 | N161: 0
B162: 8. Klasse | C162: 41 | D162: 15 | E162: 16 | F162: 9 | G162: 4 | H162: 1 | I162: 1 | J162: 2 | K162: 0 | L162: 1 | M162: 0 | N162: 0
B163: 9. Klasse | C163: 53 | D163: 15 | E163: 21 | F163: 9 | G163: 6 | H163: 0 | I163: 2 | J163: 2 | K163: 2 | L163: 0 | M163: 0 | N163: 0
B164: EF | C164: 31 | D164: 12 | E164: 4 | F164: 9 | G164: 4 | H164: 1 | I164: 2 | J164: 1 | K164: 0 | L164: 0 | M164: 0 | N164: 0
B165: Q1 | C165: 38 | D165: 17 | E165: 23 | F165: 9 | G165: 1 | H165: 0 | I165: 2 | J165: 0 | K165: 0 | L165: 0 | M165: 0 | N165: 0
B166: Q2 | C166: 20 | D166: 12 | E166: 6 | F166: 8 | G166: 3 | H166: 0 | I166: 1 | J166: 1 | K166: 1 | L166: 2 | M166: 0 | N166: 0

Sheet Daten-2 (hidden)
A1: Partei | B1: 5 | C1: 6 | D1: 7 | E1: 8 | F1: 9 | G1: EF | H1: Q1 | I1: Q2
A2: CDU | B2: 31 | C2: 35 | D2: 18 | E2: 18 | F2: 29 | G2: 17 | H2: 19 | I2: 8
A3: SPD | B3: 4 | C3: 9 | D3: 13 | E3: 9 | F3: 9 | G3: 2 | H3: 7 | I3: 9
A4: FDP | B4: 8 | C4: 4 | D4: 14 | E4: 27 | F4: 37 | G4: 20 | H4: 33 | I4: 21
A5: AfD | B5: 4 | C5: 1 | D5: 2 | E5: 1 | F5: 0 | I5: 0
A6: GRÜNE | B6: 24 | C6: 28 | D6: 22 | E6: 23 | F6: 21 | G6: 18 | H6: 18 | I6: 12
A7: DIE LINKE | B7: 2 | D7: 1 | E7: 1 | F7: 1 | G7: 1 | H7: 5
A8: Die PARTEI | D8: 3 | E8: 2 | F8: 0 | G8: 2
A9: Tierschutzpartei | B9: 13 | C9: 11 | D9: 5 | E9: 1 | F9: 2 | G9: 1 | H9: 2 | I9: 1
A10: PIRATEN | B10: 1 | C10: 1 | D10: 2 | E10: 2 | F10: 1 | H10: 2
A11: FREIE WÄHLER | F11: 2 | G11: 1
A12: NPD | D12: 1 | H12: 1
A13: ÖDP | I13: 1
A14: V-Partei³ | C14: 1 | F14: 2
A15: Gesundheitsforschung | D15: 1
A16: MLPD | B16: 1 | I16: 1
A17: Die Humanisten | I17: 1
A18: DKP | C18: 2 | D18: 1 | H18: 1
A19: SGP
A20: dieBasis | D20: 1 | F20: 3 | H20: 1
A21: Bündnis C
A22: du. | E22: 1
A23: LIEBE | D23: 1 | E23: 1
A24: LKR | B24: 2
A25: PdF | F25: 1
A26: LfK | C26: 1
A27: Team Todenhöfer | D27: 1 | E27: 4 | F27: 3 | G27: 1 | H27: 1
A28: Volt | F28: 2 | G28: 3
A29: Ungültig | D29: 1 | F29: 3

Sheet Analyse.2 (hidden)
O1: Diagramme | P1: Tabelle
A2: ID | B2: ='Daten-2'!A1:A29 -> Partei | C2: ='Daten-2'!B1:I29 -> 5 | D2: 6 | E2: 7 | F2: 8 | G2: 9 | H2: EF | I2: Q1 | J2: Q2 | N2: ABS?? | O2: FALSE | P2: TRUE | Q2: =IF(O2=TRUE,"Stimmen","der Stimmen") -> der Stimmen
A3: 1 | B3: CDU | C3: 31 | D3: 35 | E3: 18 | F3: 18 | G3: 29 | H3: 17 | I3: 19 | J3: 8 | N3: Alle Kandidaten?? | O3: FALSE | P3: TRUE
A4: 2 | B4: SPD | C4: 4 | D4: 9 | E4: 13 | F4: 9 | G4: 9 | H4: 2 | I4: 7 | J4: 9 | O4: =_xlfn.CONCAT(O2) -> FALSCH | P4: =_xlfn.CONCAT(P2) -> WAHR
A5: 3 | B5: FDP | C5: 8 | D5: 4 | E5: 14 | F5: 27 | G5: 37 | H5: 20 | I5: 33 | J5: 21 | O5: =_xlfn.CONCAT(O3) -> FALSCH | P5: =_xlfn.CONCAT(P3) -> WAHR
A6: 4 | B6: AfD | C6: 4 | D6: 1 | E6: 2 | F6: 1 | G6: 0 | H6: 0 | I6: 0 | J6: 0 | P6: =P4&P5 -> WAHRWAHR
A7: 5 | B7: GRÜNE | C7: 24 | D7: 28 | E7: 22 | F7: 23 | G7: 21 | H7: 18 | I7: 18 | J7: 12
A8: 6 | B8: DIE LINKE | C8: 2 | D8: 0 | E8: 1 | F8: 1 | G8: 1 | H8: 1 | I8: 5 | J8: 0
A9: 7 | B9: Die PARTEI | C9: 0 | D9: 0 | E9: 3 | F9: 2 | G9: 0 | H9: 2 | I9: 0 | J9: 0
A10: 8 | B10: Tierschutzpartei | C10: 13 | D10: 11 | E10: 5 | F10: 1 | G10: 2 | H10: 1 | I10: 2 | J10: 1
A11: 9 | B11: PIRATEN | C11: 1 | D11: 1 | E11: 2 | F11: 2 | G11: 1 | H11: 0 | I11: 2 | J11: 0
A12: 10 | B12: FREIE WÄHLER | C12: 0 | D12: 0 | E12: 0 | F12: 0 | G12: 2 | H12: 1 | I12: 0 | J12: 0
A13: 11 | B13: NPD | C13: 0 | D13: 0 | E13: 1 | F13: 0 | G13: 0 | H13: 0 | I13: 1 | J13: 0
A14: 12 | B14: ÖDP | C14: 0 | D14: 0 | E14: 0 | F14: 0 | G14: 0 | H14: 0 | I14: 0 | J14: 1
A15: 13 | B15: V-Partei³ | C15: 0 | D15: 1 | E15: 0 | F15: 0 | G15: 2 | H15: 0 | I15: 0 | J15: 0
A16: 14 | B16: Gesundheitsforschung | C16: 0 | D16: 0 | E16: 1 | F16: 0 | G16: 0 | H16: 0 | I16: 0 | J16: 0
A17: 15 | B17: MLPD | C17: 1 | D17: 0 | E17: 0 | F17: 0 | G17: 0 | H17: 0 | I17: 0 | J17: 1
A18: 16 | B18: Die Humanisten | C18: 0 | D18: 0 | E18: 0 | F18: 0 | G18: 0 | H18: 0 | I18: 0 | J18: 1
A19: 17 | B19: DKP | C19: 0 | D19: 2 | E19: 1 | F19: 0 | G19: 0 | H19: 0 | I19: 1 | J19: 0
A20: 18 | B20: SGP | C20: 0 | D20: 0 | E20: 0 | F20: 0 | G20: 0 | H20: 0 | I20: 0 | J20: 0
A21: 19 | B21: dieBasis | C21: 0 | D21: 0 | E21: 1 | F21: 0 | G21: 3 | H21: 0 | I21: 1 | J21: 0
A22: 20 | B22: Bündnis C | C22: 0 | D22: 0 | E22: 0 | F22: 0 | G22: 0 | H22: 0 | I22: 0 | J22: 0
A23: 21 | B23: du. | C23: 0 | D23: 0 | E23: 0 | F23: 1 | G23: 0 | H23: 0 | I23: 0 | J23: 0
A24: 22 | B24: LIEBE | C24: 0 | D24: 0 | E24: 1 | F24: 1 | G24: 0 | H24: 0 | I24: 0 | J24: 0
A25: 23 | B25: LKR | C25: 2 | D25: 0 | E25: 0 | F25: 0 | G25: 0 | H25: 0 | I25: 0 | J25: 0
A26: 24 | B26: PdF | C26: 0 | D26: 0 | E26: 0 | F26: 0 | G26: 1 | H26: 0 | I26: 0 | J26: 0
A27: 25 | B27: LfK | C27: 0 | D27: 1 | E27: 0 | F27: 0 | G27: 0 | H27: 0 | I27: 0 | J27: 0
A28: 26 | B28: Team Todenhöfer | C28: 0 | D28: 0 | E28: 1 | F28: 4 | G28: 3 | H28: 1 | I28: 1 | J28: 0
A29: 27 | B29: Volt | C29: 0 | D29: 0 | E29: 0 | F29: 0 | G29: 2 | H29: 3 | I29: 0 | J29: 0
B30: Ungültig | C30: 0 | D30: 0 | E30: 1 | F30: 0 | G30: 3 | H30: 0 | I30: 0 | J30: 0
B32: Bereich | C32: =INDEX($B$3:$B$29,COLUMN(C32)-2) -> CDU | D32: =INDEX($B$3:$B$29,COLUMN(D32)-2) -> SPD | E32: =INDEX($B$3:$B$29,COLUMN(E32)-2) -> FDP | F32: =INDEX($B$3:$B$29,COLUMN(F32)-2) -> AfD | G32: =INDEX($B$3:$B$29,COLUMN(G32)-2) -> GRÜNE | H32: =INDEX($B$3:$B$29,COLUMN(H32)-2) -> DIE LINKE | I32: =INDEX($B$3:$B$29,COLUMN(I32)-2) -> Die PARTEI | J32: =INDEX($B$3:$B$29,COLUMN(J32)-2) -> Tierschutzpartei | K32: =INDEX($B$3:$B$29,COLUMN(K32)-2) -> PIRATEN | L32: =INDEX($B$3:$B$29,COLUMN(L32)-2) -> FREIE WÄHLER | M32: =INDEX($B$3:$B$29,COLUMN(M32)-2) -> NPD | N32: =INDEX($B$3:$B$29,COLUMN(N32)-2) -> ÖDP | O32: =INDEX($B$3:$B$29,COLUMN(O32)-2) -> V-Partei³ | P32: =INDEX($B$3:$B$29,COLUMN(P32)-2) -> Gesundheitsforschung | Q32: =INDEX($B$3:$B$29,COLUMN(Q32)-2) -> MLPD | R32: =INDEX($B$3:$B$29,COLUMN(R32)-2) -> Die Humanisten | S32: =INDEX($B$3:$B$29,COLUMN(S32)-2) -> DKP | T32: =INDEX($B$3:$B$29,COLUMN(T32)-2) -> SGP | U32: =INDEX($B$3:$B$29,COLUMN(U32)-2) -> dieBasis | V32: =INDEX($B$3:$B$29,COLUMN(V32)-2) -> Bündnis C | W32: =INDEX($B$3:$B$29,COLUMN(W32)-2) -> du. | X32: =INDEX($B$3:$B$29,COLUMN(X32)-2) -> LIEBE | Y32: =INDEX($B$3:$B$29,COLUMN(Y32)-2) -> LKR | Z32: =INDEX($B$3:$B$29,COLUMN(Z32)-2) -> PdF | AA32: =INDEX($B$3:$B$29,COLUMN(AA32)-2) -> LfK | AB32: =INDEX($B$3:$B$29,COLUMN(AB32)-2) -> Team Todenhöfer | AC32: =INDEX($B$3:$B$29,COLUMN(AC32)-2) -> Volt
B33: Gesamte Schule | C33: =SUM(C37:C44) -> 175 | D33: =SUM(D37:D44) -> 62 | E33: 164 | F33: 8 | G33: 166 | H33: 11 | I33: 7 | J33: 36 | K33: 9 | L33: 3 | M33: 2 | N33: 1 | O33: =SUM(O37:O44) -> 3 | P33: 1 | Q33: 2 | R33: 1 | S33: 4 | T33: 0 | U33: 5 | V33: 0 | W33: 1 | X33: 2 | Y33: 2 | Z33: 1 | AA33: 1 | AB33: 10 | AC33: 5
B34: Unterstufe | C34: =SUM(C37:C38) -> 66 | D34: =SUM(D37:D38) -> 13 | E34: 12 | F34: 5 | G34: 52 | H34: 2 | I34: 0 | J34: 24 | K34: 2 | L34: 0 | M34: 0 | N34: 0 | O34: =SUM(O37:O38) -> 1 | P34: 0 | Q34: 1 | R34: 0 | S34: 2 | T34: 0 | U34: 0 | V34: 0 | W34: 0 | X34: 0 | Y34: 2 | Z34: 0 | AA34: 1 | AB34: 0 | AC34: 0
B35: Mittelstufe | C35: =SUM(C39:C41) -> 65 | D35: =SUM(D39:D41) -> 31 | E35: 78 | F35: 3 | G35: 66 | H35: 3 | I35: 5 | J35: 8 | K35: 5 | L35: 2 | M35: 1 | N35: 0 | O35: =SUM(O39:O41) -> 2 | P35: 1 | Q35: 0 | R35: 0 | S35: 1 | T35: 0 | U35: 4 | V35: 0 | W35: 1 | X35: 2 | Y35: 0 | Z35: 1 | AA35: 0 | AB35: 8 | AC35: 2
B36: Oberstufe | C36: =SUM(C42:C44) -> 44 | D36: =SUM(D42:D44) -> 18 | E36: 74 | F36: 0 | G36: 48 | H36: 6 | I36: 2 | J36: 4 | K36: 2 | L36: 1 | M36: 1 | N36: 1 | O36: =SUM(O42:O44) -> 0 | P36: 0 | Q36: 1 | R36: 1 | S36: 1 | T36: 0 | U36: 1 | V36: 0 | W36: 0 | X36: 0 | Y36: 0 | Z36: 0 | AA36: 0 | AB36: 2 | AC36: 3
A37: 5 | B37: 5. Klasse | C37: =INDEX($C$3:$J$29,MATCH(C$32,$B$3:$B$29,0),MATCH($A37,$C$2:$J$2,0)) -> 31 | D37: =INDEX($C$3:$J$29,MATCH(D$32,$B$3:$B$29,0),MATCH($A37,$C$2:$J$2,0)) -> 4 | E37: 8 | F37: 4 | G37: 24 | H37: 2 | I37: 0 | J37: 13 | K37: 1 | L37: 0 | M37: 0 | N37: 0 | O37: 0 | P37: 0 | Q37: 1 | R37: 0 | S37: 0 | T37: 0 | U37: 0 | V37: 0 | W37: 0 | X37: 0 | Y37: 2 | Z37: 0 | AA37: 0 | AB37: 0 | AC37: 0
A38: 6 | B38: 6. Klasse | C38: =INDEX($C$3:$J$29,MATCH(C$32,$B$3:$B$29,0),MATCH($A38,$C$2:$J$2,0)) -> 35 | D38: 9 | E38: 4 | F38: 1 | G38: 28 | H38: 0 | I38: 0 | J38: 11 | K38: 1 | L38: 0 | M38: 0 | N38: 0 | O38: 1 | P38: 0 | Q38: 0 | R38: 0 | S38: 2 | T38: 0 | U38: 0 | V38: 0 | W38: 0 | X38: 0 | Y38: 0 | Z38: 0 | AA38: 1 | AB38: 0 | AC38: 0
A39: 7 | B39: 7. Klasse | C39: 18 | D39: 13 | E39: 14 | F39: 2 | G39: 22 | H39: 1 | I39: 3 | J39: 5 | K39: 2 | L39: 0 | M39: 1 | N39: 0 | O39: 0 | P39: 1 | Q39: 0 | R39: 0 | S39: 1 | T39: 0 | U39: 1 | V39: 0 | W39: 0 | X39: 1 | Y39: 0 | Z39: 0 | AA39: 0 | AB39: 1 | AC39: 0
A40: 8 | B40: 8. Klasse | C40: 18 | D40: 9 | E40: 27 | F40: 1 | G40: 23 | H40: 1 | I40: 2 | J40: 1 | K40: 2 | L40: 0 | M40: 0 | N40: 0 | O40: 0 | P40: 0 | Q40: 0 | R40: 0 | S40: 0 | T40: 0 | U40: 0 | V40: 0 | W40: 1 | X40: 1 | Y40: 0 | Z40: 0 | AA40: 0 | AB40: 4 | AC40: 0
A41: 9 | B41: 9. Klasse | C41: 29 | D41: 9 | E41: 37 | F41: 0 | G41: 21 | H41: 1 | I41: 0 | J41: 2 | K41: 1 | L41: 2 | M41: 0 | N41: 0 | O41: 2 | P41: 0 | Q41: 0 | R41: 0 | S41: 0 | T41: 0 | U41: 3 | V41: 0 | W41: 0 | X41: 0 | Y41: 0 | Z41: 1 | AA41: 0 | AB41: 3 | AC41: 2
A42: EF | B42: EF | C42: 17 | D42: 2 | E42: 20 | F42: 0 | G42: 18 | H42: 1 | I42: 2 | J42: 1 | K42: 0 | L42: 1 | M42: 0 | N42: 0 | O42: 0 | P42: 0 | Q42: 0 | R42: 0 | S42: 0 | T42: 0 | U42: 0 | V42: 0 | W42: 0 | X42: 0 | Y42: 0 | Z42: 0 | AA42: 0 | AB42: 1 | AC42: 3
A43: Q1 | B43: Q1 | C43: 19 | D43: 7 | E43: 33 | F43: 0 | G43: 18 | H43: 5 | I43: 0 | J43: 2 | K43: 2 | L43: 0 | M43: 1 | N43: 0 | O43: 0 | P43: 0 | Q43: 0 | R43: 0 | S43: 1 | T43: 0 | U43: 1 | V43: 0 | W43: 0 | X43: 0 | Y43: 0 | Z43: 0 | AA43: 0 | AB43: 1 | AC43: 0
A44: Q2 | B44: Q2 | C44: 8 | D44: 9 | E44: 21 | F44: 0 | G44: 12 | H44: 0 | I44: 0 | J44: 1 | K44: 0 | L44: 0 | M44: 0 | N44: 1 | O44: 0 | P44: 0 | Q44: 1 | R44: 1 | S44: 0 | T44: 0 | U44: 0 | V44: 0 | W44: 0 | X44: 0 | Y44: 0 | Z44: 0 | AA44: 0 | AB44: 0 | AC44: 0
C46: =_xlfn.SORTBY(C51:AC51,C52:AC52,-1) -> CDU | D46: GRÜNE | E46: FDP | F46: SPD | G46: Tierschutzpartei | H46: DIE LINKE | I46: Team Todenhöfer | J46: PIRATEN | K46: AfD | L46: Die PARTEI | M46: dieBasis | N46: Volt | O46: DKP | P46: FREIE WÄHLER | Q46: V-Partei³ | R46: NPD | S46: MLPD | T46: LIEBE | U46: LKR | V46: ÖDP | W46: Gesundheitsforschung | X46: Die Humanisten | Y46: du. | Z46: PdF | AA46: LfK | AB46: SGP | AC46: Bündnis C
C47: =INDEX($C$52:$AC$52,,MATCH(C46,$C$51:$AC$51,0)) -> 175 | D47: =INDEX($C$52:$AC$52,,MATCH(D46,$C$51:$AC$51,0)) -> 166 | E47: =INDEX($C$52:$AC$52,,MATCH(E46,$C$51:$AC$51,0)) -> 164 | F47: =INDEX($C$52:$AC$52,,MATCH(F46,$C$51:$AC$51,0)) -> 62 | G47: =INDEX($C$52:$AC$52,,MATCH(G46,$C$51:$AC$51,0)) -> 36 | H47: =INDEX($C$52:$AC$52,,MATCH(H46,$C$51:$AC$51,0)) -> 11 | I47: =INDEX($C$52:$AC$52,,MATCH(I46,$C$51:$AC$51,0)) -> 10 | J47: =INDEX($C$52:$AC$52,,MATCH(J46,$C$51:$AC$51,0)) -> 9 | K47: =INDEX($C$52:$AC$52,,MATCH(K46,$C$51:$AC$51,0)) -> 8 | L47: =INDEX($C$52:$AC$52,,MATCH(L46,$C$51:$AC$51,0)) -> 7 | M47: =INDEX($C$52:$AC$52,,MATCH(M46,$C$51:$AC$51,0)) -> 5 | N47: =INDEX($C$52:$AC$52,,MATCH(N46,$C$51:$AC$51,0)) -> 5 | O47: =INDEX($C$52:$AC$52,,MATCH(O46,$C$51:$AC$51,0)) -> 4 | P47: =INDEX($C$52:$AC$52,,MATCH(P46,$C$51:$AC$51,0)) -> 3 | Q47: =INDEX($C$52:$AC$52,,MATCH(Q46,$C$51:$AC$51,0)) -> 3 | R47: =INDEX($C$52:$AC$52,,MATCH(R46,$C$51:$AC$51,0)) -> 2 | S47: =INDEX($C$52:$AC$52,,MATCH(S46,$C$51:$AC$51,0)) -> 2 | T47: =INDEX($C$52:$AC$52,,MATCH(T46,$C$51:$AC$51,0)) -> 2 | U47: =INDEX($C$52:$AC$52,,MATCH(U46,$C$51:$AC$51,0)) -> 2 | V47: =INDEX($C$52:$AC$52,,MATCH(V46,$C$51:$AC$51,0)) -> 1 | W47: =INDEX($C$52:$AC$52,,MATCH(W46,$C$51:$AC$51,0)) -> 1 | X47: =INDEX($C$52:$AC$52,,MATCH(X46,$C$51:$AC$51,0)) -> 1 | Y47: =INDEX($C$52:$AC$52,,MATCH(Y46,$C$51:$AC$51,0)) -> 1 | Z47: =INDEX($C$52:$AC$52,,MATCH(Z46,$C$51:$AC$51,0)) -> 1 | AA47: =INDEX($C$52:$AC$52,,MATCH(AA46,$C$51:$AC$51,0)) -> 1 | AB47: =INDEX($C$52:$AC$52,,MATCH(AB46,$C$51:$AC$51,0)) -> 0 | AC47: =INDEX($C$52:$AC$52,,MATCH(AC46,$C$51:$AC$51,0)) -> 0
B49: Ranking | C49: =MATCH(C51,_xlfn.ANCHORARRAY($C$46),0) -> 1 | D49: =MATCH(D51,_xlfn.ANCHORARRAY($C$46),0) -> 4 | E49: 3 | F49: 9 | G49: 2 | H49: 6 | I49: 10 | J49: 5 | K49: 8 | L49: 14 | M49: 20 | N49: 16 | O49: 15 | P49: 21 | Q49: 17 | R49: 22 | S49: 13 | T49: 26 | U49: 11 | V49: 27 | W49: 23 | X49: 18 | Y49: 19 | Z49: 24 | AA49: 25 | AB49: 7 | AC49: 12
B51: x | C51: CDU | D51: SPD | E51: FDP | F51: AfD | G51: GRÜNE | H51: DIE LINKE | I51: Die PARTEI | J51: Tierschutzpartei | K51: PIRATEN | L51: FREIE WÄHLER | M51: ÖDP | N51: NPD | O51: V-Partei³ | P51: Gesundheitsforschung | Q51: MLPD | R51: Die Humanisten | S51: DKP | T51: SGP | U51: dieBasis | V51: Bündnis C | W51: du. | X51: LIEBE | Y51: LKR | Z51: PdF | AA51: LfK | AB51: Team Todenhöfer | AC51: Volt
B52: Gesamte Schule | C52: 175 | D52: 62 | E52: 164 | F52: 8 | G52: 166 | H52: 11 | I52: 7 | J52: 36 | K52: 9 | L52: 3 | M52: 1 | N52: 2 | O52: 3 | P52: 1 | Q52: 2 | R52: 1 | S52: 4 | T52: 0 | U52: 5 | V52: 0 | W52: 1 | X52: 2 | Y52: 2 | Z52: 1 | AA52: 1 | AB52: 10 | AC52: 5
B53: Unterstufe | C53: 66 | D53: 13 | E53: 12 | F53: 5 | G53: 52 | H53: 2 | I53: 0 | J53: 24 | K53: 2 | L53: 0 | M53: 0 | N53: 0 | O53: 1 | P53: 0 | Q53: 1 | R53: 0 | S53: 2 | T53: 0 | U53: 0 | V53: 0 | W53: 0 | X53: 0 | Y53: 2 | Z53: 0 | AA53: 1 | AB53: 0 | AC53: 0
B54: Mittelstufe | C54: 65 | D54: 31 | E54: 78 | F54: 3 | G54: 66 | H54: 3 | I54: 5 | J54: 8 | K54: 5 | L54: 2 | M54: 0 | N54: 1 | O54: 2 | P54: 1 | Q54: 0 | R54: 0 | S54: 1 | T54: 0 | U54: 4 | V54: 0 | W54: 1 | X54: 2 | Y54: 0 | Z54: 1 | AA54: 0 | AB54: 8 | AC54: 2
B55: Oberstufe | C55: 44 | D55: 18 | E55: 74 | F55: 0 | G55: 48 | H55: 6 | I55: 2 | J55: 4 | K55: 2 | L55: 1 | M55: 1 | N55: 1 | O55: 0 | P55: 0 | Q55: 1 | R55: 1 | S55: 1 | T55: 0 | U55: 1 | V55: 0 | W55: 0 | X55: 0 | Y55: 0 | Z55: 0 | AA55: 0 | AB55: 2 | AC55: 3
B56: 5. Klasse | C56: 31 | D56: 4 | E56: 8 | F56: 4 | G56: 24 | H56: 2 | I56: 0 | J56: 13 | K56: 1 | L56: 0 | M56: 0 | N56: 0 | O56: 0 | P56: 0 | Q56: 1 | R56: 0 | S56: 0 | T56: 0 | U56: 0 | V56: 0 | W56: 0 | X56: 0 | Y56: 2 | Z56: 0 | AA56: 0 | AB56: 0 | AC56: 0
B57: 6. Klasse | C57: 35 | D57: 9 | E57: 4 | F57: 1 | G57: 28 | H57: 0 | I57: 0 | J57: 11 | K57: 1 | L57: 0 | M57: 0 | N57: 0 | O57: 1 | P57: 0 | Q57: 0 | R57: 0 | S57: 2 | T57: 0 | U57: 0 | V57: 0 | W57: 0 | X57: 0 | Y57: 0 | Z57: 0 | AA57: 1 | AB57: 0 | AC57: 0
B58: 7. Klasse | C58: 18 | D58: 13 | E58: 14 | F58: 2 | G58: 22 | H58: 1 | I58: 3 | J58: 5 | K58: 2 | L58: 0 | M58: 0 | N58: 1 | O58: 0 | P58: 1 | Q58: 0 | R58: 0 | S58: 1 | T58: 0 | U58: 1 | V58: 0 | W58: 0 | X58: 1 | Y58: 0 | Z58: 0 | AA58: 0 | AB58: 1 | AC58: 0
B59: 8. Klasse | C59: 18 | D59: 9 | E59: 27 | F59: 1 | G59: 23 | H59: 1 | I59: 2 | J59: 1 | K59: 2 | L59: 0 | M59: 0 | N59: 0 | O59: 0 | P59: 0 | Q59: 0 | R59: 0 | S59: 0 | T59: 0 | U59: 0 | V59: 0 | W59: 1 | X59: 1 | Y59: 0 | Z59: 0 | AA59: 0 | AB59: 4 | AC59: 0
B60: 9. Klasse | C60: 29 | D60: 9 | E60: 37 | F60: 0 | G60: 21 | H60: 1 | I60: 0 | J60: 2 | K60: 1 | L60: 2 | M60: 0 | N60: 0 | O60: 2 | P60: 0 | Q60: 0 | R60: 0 | S60: 0 | T60: 0 | U60: 3 | V60: 0 | W60: 0 | X60: 0 | Y60: 0 | Z60: 1 | AA60: 0 | AB60: 3 | AC60: 2
B61: EF | C61: 17 | D61: 2 | E61: 20 | F61: 0 | G61: 18 | H61: 1 | I61: 2 | J61: 1 | K61: 0 | L61: 1 | M61: 0 | N61: 0 | O61: 0 | P61: 0 | Q61: 0 | R61: 0 | S61: 0 | T61: 0 | U61: 0 | V61: 0 | W61: 0 | X61: 0 | Y61: 0 | Z61: 0 | AA61: 0 | AB61: 1 | AC61: 3
B62: Q1 | C62: 19 | D62: 7 | E62: 33 | F62: 0 | G62: 18 | H62: 5 | I62: 0 | J62: 2 | K62: 2 | L62: 0 | M62: 0 | N62: 1 | O62: 0 | P62: 0 | Q62: 0 | R62: 0 | S62: 1 | T62: 0 | U62: 1 | V62: 0 | W62: 0 | X62: 0 | Y62: 0 | Z62: 0 | AA62: 0 | AB62: 1 | AC62: 0
B63: Q2 | C63: 8 | D63: 9 | E63: 21 | F63: 0 | G63: 12 | H63: 0 | I63: 0 | J63: 1 | K63: 0 | L63: 0 | M63: 1 | N63: 0 | O63: 0 | P63: 0 | Q63: 1 | R63: 1 | S63: 0 | T63: 0 | U63: 0 | V63: 0 | W63: 0 | X63: 0 | Y63: 0 | Z63: 0 | AA63: 0 | AB63: 0 | AC63: 0
B65: =B51:B63 -> x | C65: =_xlfn.SORTBY(C51:AC63,C49:AC49) -> CDU | D65: GRÜNE | E65: FDP | F65: SPD | G65: Tierschutzpartei | H65: DIE LINKE | I65: Team Todenhöfer | J65: PIRATEN | K65: AfD | L65: Die PARTEI | M65: dieBasis | N65: Volt | O65: DKP | P65: FREIE WÄHLER | Q65: V-Partei³ | R65: NPD | S65: MLPD | T65: LIEBE | U65: LKR | V65: ÖDP | W65: Gesundheitsforschung | X65: Die Humanisten | Y65: du. | Z65: PdF | AA65: LfK | AB65: SGP | AC65: Bündnis C
B66: Gesamte Schule | C66: 175 | D66: 166 | E66: 164 | F66: 62 | G66: 36 | H66: 11 | I66: 10 | J66: 9 | K66: 8 | L66: 7 | M66: 5 | N66: 5 | O66: 4 | P66: 3 | Q66: 3 | R66: 2 | S66: 2 | T66: 2 | U66: 2 | V66: 1 | W66: 1 | X66: 1 | Y66: 1 | Z66: 1 | AA66: 1 | AB66: 0 | AC66: 0
B67: Unterstufe | C67: 66 | D67: 52 | E67: 12 | F67: 13 | G67: 24 | H67: 2 | I67: 0 | J67: 2 | K67: 5 | L67: 0 | M67: 0 | N67: 0 | O67: 2 | P67: 0 | Q67: 1 | R67: 0 | S67: 1 | T67: 0 | U67: 2 | V67: 0 | W67: 0 | X67: 0 | Y67: 0 | Z67: 0 | AA67: 1 | AB67: 0 | AC67: 0
B68: Mittelstufe | C68: 65 | D68: 66 | E68: 78 | F68: 31 | G68: 8 | H68: 3 | I68: 8 | J68: 5 | K68: 3 | L68: 5 | M68: 4 | N68: 2 | O68: 1 | P68: 2 | Q68: 2 | R68: 1 | S68: 0 | T68: 2 | U68: 0 | V68: 0 | W68: 1 | X68: 0 | Y68: 1 | Z68: 1 | AA68: 0 | AB68: 0 | AC68: 0
B69: Oberstufe | C69: 44 | D69: 48 | E69: 74 | F69: 18 | G69: 4 | H69: 6 | I69: 2 | J69: 2 | K69: 0 | L69: 2 | M69: 1 | N69: 3 | O69: 1 | P69: 1 | Q69: 0 | R69: 1 | S69: 1 | T69: 0 | U69: 0 | V69: 1 | W69: 0 | X69: 1 | Y69: 0 | Z69: 0 | AA69: 0 | AB69: 0 | AC69: 0
B70: 5. Klasse | C70: 31 | D70: 24 | E70: 8 | F70: 4 | G70: 13 | H70: 2 | I70: 0 | J70: 1 | K70: 4 | L70: 0 | M70: 0 | N70: 0 | O70: 0 | P70: 0 | Q70: 0 | R70: 0 | S70: 1 | T70: 0 | U70: 2 | V70: 0 | W70: 0 | X70: 0 | Y70: 0 | Z70: 0 | AA70: 0 | AB70: 0 | AC70: 0
B71: 6. Klasse | C71: 35 | D71: 28 | E71: 4 | F71: 9 | G71: 11 | H71: 0 | I71: 0 | J71: 1 | K71: 1 | L71: 0 | M71: 0 | N71: 0 | O71: 2 | P71: 0 | Q71: 1 | R71: 0 | S71: 0 | T71: 0 | U71: 0 | V71: 0 | W71: 0 | X71: 0 | Y71: 0 | Z71: 0 | AA71: 1 | AB71: 0 | AC71: 0
B72: 7. Klasse | C72: 18 | D72: 22 | E72: 14 | F72: 13 | G72: 5 | H72: 1 | I72: 1 | J72: 2 | K72: 2 | L72: 3 | M72: 1 | N72: 0 | O72: 1 | P72: 0 | Q72: 0 | R72: 1 | S72: 0 | T72: 1 | U72: 0 | V72: 0 | W72: 1 | X72: 0 | Y72: 0 | Z72: 0 | AA72: 0 | AB72: 0 | AC72: 0
B73: 8. Klasse | C73: 18 | D73: 23 | E73: 27 | F73: 9 | G73: 1 | H73: 1 | I73: 4 | J73: 2 | K73: 1 | L73: 2 | M73: 0 | N73: 0 | O73: 0 | P73: 0 | Q73: 0 | R73: 0 | S73: 0 | T73: 1 | U73: 0 | V73: 0 | W73: 0 | X73: 0 | Y73: 1 | Z73: 0 | AA73: 0 | AB73: 0 | AC73: 0
B74: 9. Klasse | C74: 29 | D74: 21 | E74: 37 | F74: 9 | G74: 2 | H74: 1 | I74: 3 | J74: 1 | K74: 0 | L74: 0 | M74: 3 | N74: 2 | O74: 0 | P74: 2 | Q74: 2 | R74: 0 | S74: 0 | T74: 0 | U74: 0 | V74: 0 | W74: 0 | X74: 0 | Y74: 0 | Z74: 1 | AA74: 0 | AB74: 0 | AC74: 0
B75: EF | C75: 17 | D75: 18 | E75: 20 | F75: 2 | G75: 1 | H75: 1 | I75: 1 | J75: 0 | K75: 0 | L75: 2 | M75: 0 | N75: 3 | O75: 0 | P75: 1 | Q75: 0 | R75: 0 | S75: 0 | T75: 0 | U75: 0 | V75: 0 | W75: 0 | X75: 0 | Y75: 0 | Z75: 0 | AA75: 0 | AB75: 0 | AC75: 0
B76: Q1 | C76: 19 | D76: 18 | E76: 33 | F76: 7 | G76: 2 | H76: 5 | I76: 1 | J76: 2 | K76: 0 | L76: 0 | M76: 1 | N76: 0 | O76: 1 | P76: 0 | Q76: 0 | R76: 1 | S76: 0 | T76: 0 | U76: 0 | V76: 0 | W76: 0 | X76: 0 | Y76: 0 | Z76: 0 | AA76: 0 | AB76: 0 | AC76: 0
B77: Q2 | C77: 8 | D77: 12 | E77: 21 | F77: 9 | G77: 1 | H77: 0 | I77: 0 | J77: 0 | K77: 0 | L77: 0 | M77: 0 | N77: 0 | O77: 0 | P77: 0 | Q77: 0 | R77: 0 | S77: 1 | T77: 0 | U77: 0 | V77: 1 | W77: 0 | X77: 1 | Y77: 0 | Z77: 0 | AA77: 0 | AB77: 0 | AC77: 0
B79: =_xlfn.ANCHORARRAY(B65) -> x | C79: =C65:AC65 -> CDU | D79: GRÜNE | E79: FDP | F79: SPD | G79: Tierschutzpartei | H79: DIE LINKE | I79: Team Todenhöfer | J79: PIRATEN | K79: AfD | L79: Die PARTEI | M79: dieBasis | N79: Volt | O79: DKP | P79: FREIE WÄHLER | Q79: V-Partei³ | R79: NPD | S79: MLPD | T79: LIEBE | U79: LKR | V79: ÖDP | W79: Gesundheitsforschung | X79: Die Humanisten | Y79: du. | Z79: PdF | AA79: LfK | AB79: SGP | AC79: Bündnis C | AD79: Sonstige
B80: Gesamte Schule | C80: =IF($O$2=TRUE,C66,C66/SUM($C66:$AC66)*100) -> 25.65982405 | D80: =IF($O$2=TRUE,D66,D66/SUM($C66:$AC66)*100) -> 24.34017595 | E80: 24.04692082 | F80: 9.090909091 | G80: 5.278592375 | H80: 1.612903226 | I80: 1.46627566 | J80: 1.319648094 | K80: 1.173020528 | L80: 1.026392962 | M80: 0.7331378299 | N80: 0.7331378299 | O80: 0.5865102639 | P80: 0.4398826979 | Q80: 0.4398826979 | R80: 0.293255132 | S80: 0.293255132 | T80: 0.293255132 | U80: 0.293255132 | V80: 0.146627566 | W80: 0.146627566 | X80: 0.146627566 | Y80: 0.146627566 | Z80: 0.146627566 | AA80: 0.146627566 | AB80: 0 | AC80: 0 | AD80: =SUM(H80:AC80) -> 11.58357771
B81: Unterstufe | C81: =IF($O$2=TRUE,C67,C67/SUM($C67:$AC67)*100) -> 36.06557377 | D81: 28.41530055 | E81: 6.557377049 | F81: 7.103825137 | G81: 13.1147541 | H81: 1.092896175 | I81: 0 | J81: 1.092896175 | K81: 2.732240437 | L81: 0 | M81: 0 | N81: 0 | O81: 1.092896175 | P81: 0 | Q81: 0.5464480874 | R81: 0 | S81: 0.5464480874 | T81: 0 | U81: 1.092896175 | V81: 0 | W81: 0 | X81: 0 | Y81: 0 | Z81: 0 | AA81: 0.5464480874 | AB81: 0 | AC81: 0 | AD81: =SUM(H81:AC81) -> 8.743169399
B82: Mittelstufe | C82: 22.49134948 | D82: 22.83737024 | E82: 26.98961938 | F82: 10.7266436 | G82: 2.76816609 | H82: 1.038062284 | I82: 2.76816609 | J82: 1.730103806 | K82: 1.038062284 | L82: 1.730103806 | M82: 1.384083045 | N82: 0.6920415225 | O82: 0.3460207612 | P82: 0.6920415225 | Q82: 0.6920415225 | R82: 0.3460207612 | S82: 0 | T82: 0.6920415225 | U82: 0 | V82: 0 | W82: 0.3460207612 | X82: 0 | Y82: 0.3460207612 | Z82: 0.3460207612 | AA82: 0 | AB82: 0 | AC82: 0 | AD82: 14.18685121
B83: Oberstufe | C83: 20.95238095 | D83: 22.85714286 | E83: 35.23809524 | F83: 8.571428571 | G83: 1.904761905 | H83: 2.857142857 | I83: 0.9523809524 | J83: 0.9523809524 | K83: 0 | L83: 0.9523809524 | M83: 0.4761904762 | N83: 1.428571429 | O83: 0.4761904762 | P83: 0.4761904762 | Q83: 0 | R83: 0.4761904762 | S83: 0.4761904762 | T83: 0 | U83: 0 | V83: 0.4761904762 | W83: 0 | X83: 0.4761904762 | Y83: 0 | Z83: 0 | AA83: 0 | AB83: 0 | AC83: 0 | AD83: 10.47619048
B84: 5. Klasse | C84: 34.44444444 | D84: 26.66666667 | E84: 8.888888889 | F84: 4.444444444 | G84: 14.44444444 | H84: 2.222222222 | I84: 0 | J84: 1.111111111 | K84: 4.444444444 | L84: 0 | M84: 0 | N84: 0 | O84: 0 | P84: 0 | Q84: 0 | R84: 0 | S84: 1.111111111 | T84: 0 | U84: 2.222222222 | V84: 0 | W84: 0 | X84: 0 | Y84: 0 | Z84: 0 | AA84: 0 | AB84: 0 | AC84: 0 | AD84: 11.11111111
B85: 6. Klasse | C85: 37.6344086 | D85: 30.10752688 | E85: 4.301075269 | F85: 9.677419355 | G85: 11.82795699 | H85: 0 | I85: 0 | J85: 1.075268817 | K85: 1.075268817 | L85: 0 | M85: 0 | N85: 0 | O85: 2.150537634 | P85: 0 | Q85: 1.075268817 | R85: 0 | S85: 0 | T85: 0 | U85: 0 | V85: 0 | W85: 0 | X85: 0 | Y85: 0 | Z85: 0 | AA85: 1.075268817 | AB85: 0 | AC85: 0 | AD85: 6.451612903
B86: 7. Klasse | C86: 20.93023256 | D86: 25.58139535 | E86: 16.27906977 | F86: 15.11627907 | G86: 5.813953488 | H86: 1.162790698 | I86: 1.162790698 | J86: 2.325581395 | K86: 2.325581395 | L86: 3.488372093 | M86: 1.162790698 | N86: 0 | O86: 1.162790698 | P86: 0 | Q86: 0 | R86: 1.162790698 | S86: 0 | T86: 1.162790698 | U86: 0 | V86: 0 | W86: 1.162790698 | X86: 0 | Y86: 0 | Z86: 0 | AA86: 0 | AB86: 0 | AC86: 0 | AD86: 16.27906977
B87: 8. Klasse | C87: 20 | D87: 25.55555556 | E87: 30 | F87: 10 | G87: 1.111111111 | H87: 1.111111111 | I87: 4.444444444 | J87: 2.222222222 | K87: 1.111111111 | L87: 2.222222222 | M87: 0 | N87: 0 | O87: 0 | P87: 0 | Q87: 0 | R87: 0 | S87: 0 | T87: 1.111111111 | U87: 0 | V87: 0 | W87: 0 | X87: 0 | Y87: 1.111111111 | Z87: 0 | AA87: 0 | AB87: 0 | AC87: 0 | AD87: 13.33333333
B88: 9. Klasse | C88: 25.66371681 | D88: 18.5840708 | E88: 32.74336283 | F88: 7.96460177 | G88: 1.769911504 | H88: 0.8849557522 | I88: 2.654867257 | J88: 0.8849557522 | K88: 0 | L88: 0 | M88: 2.654867257 | N88: 1.769911504 | O88: 0 | P88: 1.769911504 | Q88: 1.769911504 | R88: 0 | S88: 0 | T88: 0 | U88: 0 | V88: 0 | W88: 0 | X88: 0 | Y88: 0 | Z88: 0.8849557522 | AA88: 0 | AB88: 0 | AC88: 0 | AD88: 13.27433628
B89: EF | C89: 25.75757576 | D89: 27.27272727 | E89: 30.3030303 | F89: 3.03030303 | G89: 1.515151515 | H89: 1.515151515 | I89: 1.515151515 | J89: 0 | K89: 0 | L89: 3.03030303 | M89: 0 | N89: 4.545454545 | O89: 0 | P89: 1.515151515 | Q89: 0 | R89: 0 | S89: 0 | T89: 0 | U89: 0 | V89: 0 | W89: 0 | X89: 0 | Y89: 0 | Z89: 0 | AA89: 0 | AB89: 0 | AC89: 0 | AD89: 12.12121212
B90: Q1 | C90: 21.11111111 | D90: 20 | E90: 36.66666667 | F90: 7.777777778 | G90: 2.222222222 | H90: 5.555555556 | I90: 1.111111111 | J90: 2.222222222 | K90: 0 | L90: 0 | M90: 1.111111111 | N90: =IF($O$2=TRUE,N76,N76/SUM($C76:$AC76)*100) -> 0 | O90: 1.111111111 | P90: 0 | Q90: 0 | R90: 1.111111111 | S90: 0 | T90: 0 | U90: 0 | V90: 0 | W90: 0 | X90: 0 | Y90: 0 | Z90: 0 | AA90: 0 | AB90: 0 | AC90: 0 | AD90: 12.22222222
B91: Q2 | C91: 14.81481481 | D91: 22.22222222 | E91: 38.88888889 | F91: 16.66666667 | G91: 1.851851852 | H91: 0 | I91: 0 | J91: 0 | K91: 0 | L91: 0 | M91: 0 | N91: 0 | O91: 0 | P91: 0 | Q91: 0 | R91: 0 | S91: 1.851851852 | T91: 0 | U91: 0 | V91: 1.851851852 | W91: 0 | X91: 1.851851852 | Y91: 0 | Z91: 0 | AA91: 0 | AB91: 0 | AC91: 0 | AD91: 5.555555556
B94: =OFFSET(B79:AC91,,,ROWS(_xlfn.ANCHORARRAY(B79))-COUNTIF(_xlfn.ANCHORARRAY(B79),0),IF(O3=FALSE,6,COLUMNS(B79:AC79))) -> x | C94: CDU | D94: GRÜNE | E94: FDP | F94: SPD | G94: Tierschutzpartei
B95: Gesamte Schule | C95: 25.65982405 | D95: 24.34017595 | E95: 24.04692082 | F95: 9.090909091 | G95: 5.278592375
B96: Unterstufe | C96: 36.06557377 | D96: 28.41530055 | E96: 6.557377049 | F96: 7.103825137 | G96: 13.1147541
B97: Mittelstufe | C97: 22.49134948 | D97: 22.83737024 | E97: 26.98961938 | F97: 10.7266436 | G97: 2.76816609
B98: Oberstufe | C98: 20.95238095 | D98: 22.85714286 | E98: 35.23809524 | F98: 8.571428571 | G98: 1.904761905
B99: 5. Klasse | C99: 34.44444444 | D99: 26.66666667 | E99: 8.888888889 | F99: 4.444444444 | G99: 14.44444444
B100: 6. Klasse | C100: 37.6344086 | D100: 30.10752688 | E100: 4.301075269 | F100: 9.677419355 | G100: 11.82795699
B101: 7. Klasse | C101: 20.93023256 | D101: 25.58139535 | E101: 16.27906977 | F101: 15.11627907 | G101: 5.813953488
B102: 8. Klasse | C102: 20 | D102: 25.55555556 | E102: 30 | F102: 10 | G102: 1.111111111
B103: 9. Klasse | C103: 25.66371681 | D103: 18.5840708 | E103: 32.74336283 | F103: 7.96460177 | G103: 1.769911504
B104: EF | C104: 25.75757576 | D104: 27.27272727 | E104: 30.3030303 | F104: 3.03030303 | G104: 1.515151515
B105: Q1 | C105: 21.11111111 | D105: 20 | E105: 36.66666667 | F105: 7.777777778 | G105: 2.222222222
B106: Q2 | C106: 14.81481481 | D106: 22.22222222 | E106: 38.88888889 | F106: 16.66666667 | G106: 1.851851852
B108: =OFFSET(B79:N91,,,ROWS(_xlfn.ANCHORARRAY(B79))-COUNTIF(_xlfn.ANCHORARRAY(B79),0),6) -> x | C108: CDU | D108: GRÜNE | E108: FDP | F108: SPD | G108: Tierschutzpartei | H108: =AD79:AD91 -> Sonstige | J108: =" " -> 
B109: Gesamte Schule | C109: 25.65982405 | D109: 24.34017595 | E109: 24.04692082 | F109: 9.090909091 | G109: 5.278592375 | H109: 11.58357771
B110: Unterstufe | C110: 36.06557377 | D110: 28.41530055 | E110: 6.557377049 | F110: 7.103825137 | G110: 13.1147541 | H110: 8.743169399
B111: Mittelstufe | C111: 22.49134948 | D111: 22.83737024 | E111: 26.98961938 | F111: 10.7266436 | G111: 2.76816609 | H111: 14.18685121
B112: Oberstufe | C112: 20.95238095 | D112: 22.85714286 | E112: 35.23809524 | F112: 8.571428571 | G112: 1.904761905 | H112: 10.47619048
B113: 5. Klasse | C113: 34.44444444 | D113: 26.66666667 | E113: 8.888888889 | F113: 4.444444444 | G113: 14.44444444 | H113: 11.11111111
B114: 6. Klasse | C114: 37.6344086 | D114: 30.10752688 | E114: 4.301075269 | F114: 9.677419355 | G114: 11.82795699 | H114: 6.451612903
B115: 7. Klasse | C115: 20.93023256 | D115: 25.58139535 | E115: 16.27906977 | F115: 15.11627907 | G115: 5.813953488 | H115: 16.27906977
B116: 8. Klasse | C116: 20 | D116: 25.55555556 | E116: 30 | F116: 10 | G116: 1.111111111 | H116: 13.33333333
B117: 9. Klasse | C117: 25.66371681 | D117: 18.5840708 | E117: 32.74336283 | F117: 7.96460177 | G117: 1.769911504 | H117: 13.27433628
B118: EF | C118: 25.75757576 | D118: 27.27272727 | E118: 30.3030303 | F118: 3.03030303 | G118: 1.515151515 | H118: 12.12121212
B119: Q1 | C119: 21.11111111 | D119: 20 | E119: 36.66666667 | F119: 7.777777778 | G119: 2.222222222 | H119: 12.22222222
B120: Q2 | C120: 14.81481481 | D120: 22.22222222 | E120: 38.88888889 | F120: 16.66666667 | G120: 1.851851852 | H120: 5.555555556
B122: =IF(O3=TRUE,B94:AC94,B108:AC108) -> x | C122: CDU | D122: GRÜNE | E122: FDP | F122: SPD | G122: Tierschutzpartei | H122: Sonstige | I122: 0
B123: =OFFSET(Analyse.2!$B$95:$AC$120,IF(Analyse.2!$O$3=TRUE,0,14),,12) -> Gesamte Schule | C123: 25.65982405 | D123: 24.34017595 | E123: 24.04692082 | F123: 9.090909091 | G123: 5.278592375 | H123: 11.58357771 | I123: 0 | J123: 0 | K123: 0 | L123: 0 | M123: 0 | N123: 0 | O123: 0 | P123: 0 | Q123: 0 | R123: 0 | S123: 0 | T123: 0 | U123: 0 | V123: 0 | W123: 0 | X123: 0 | Y123: 0 | Z123: 0 | AA123: 0 | AB123: 0 | AC123: 0
B124: Unterstufe | C124: 36.06557377 | D124: 28.41530055 | E124: 6.557377049 | F124: 7.103825137 | G124: 13.1147541 | H124: 8.743169399 | I124: 0 | J124: 0 | K124: 0 | L124: 0 | M124: 0 | N124: 0 | O124: 0 | P124: 0 | Q124: 0 | R124: 0 | S124: 0 | T124: 0 | U124: 0 | V124: 0 | W124: 0 | X124: 0 | Y124: 0 | Z124: 0 | AA124: 0 | AB124: 0 | AC124: 0
B125: Mittelstufe | C125: 22.49134948 | D125: 22.83737024 | E125: 26.98961938 | F125: 10.7266436 | G125: 2.76816609 | H125: 14.18685121 | I125: 0 | J125: 0 | K125: 0 | L125: 0 | M125: 0 | N125: 0 | O125: 0 | P125: 0 | Q125: 0 | R125: 0 | S125: 0 | T125: 0 | U125: 0 | V125: 0 | W125: 0 | X125: 0 | Y125: 0 | Z125: 0 | AA125: 0 | AB125: 0 | AC125: 0
B126: Oberstufe | C126: 20.95238095 | D126: 22.85714286 | E126: 35.23809524 | F126: 8.571428571 | G126: 1.904761905 | H126: 10.47619048 | I126: 0 | J126: 0 | K126: 0 | L126: 0 | M126: 0 | N126: 0 | O126: 0 | P126: 0 | Q126: 0 | R126: 0 | S126: 0 | T126: 0 | U126: 0 | V126: 0 | W126: 0 | X126: 0 | Y126: 0 | Z126: 0 | AA126: 0 | AB126: 0 | AC126: 0
B127: 5. Klasse | C127: 34.44444444 | D127: 26.66666667 | E127: 8.888888889 | F127: 4.444444444 | G127: 14.44444444 | H127: 11.11111111 | I127: 0 | J127: 0 | K127: 0 | L127: 0 | M127: 0 | N127: 0 | O127: 0 | P127: 0 | Q127: 0 | R127: 0 | S127: 0 | T127: 0 | U127: 0 | V127: 0 | W127: 0 | X127: 0 | Y127: 0 | Z127: 0 | AA127: 0 | AB127: 0 | AC127: 0
B128: 6. Klasse | C128: 37.6344086 | D128: 30.10752688 | E128: 4.301075269 | F128: 9.677419355 | G128: 11.82795699 | H128: 6.451612903 | I128: 0 | J128: 0 | K128: 0 | L128: 0 | M128: 0 | N128: 0 | O128: 0 | P128: 0 | Q128: 0 | R128: 0 | S128: 0 | T128: 0 | U128: 0 | V128: 0 | W128: 0 | X128: 0 | Y128: 0 | Z128: 0 | AA128: 0 | AB128: 0 | AC128: 0
B129: 7. Klasse | C129: 20.93023256 | D129: 25.58139535 | E129: 16.27906977 | F129: 15.11627907 | G129: 5.813953488 | H129: 16.27906977 | I129: 0 | J129: 0 | K129: 0 | L129: 0 | M129: 0 | N129: 0 | O129: 0 | P129: 0 | Q129: 0 | R129: 0 | S129: 0 | T129: 0 | U129: 0 | V129: 0 | W129: 0 | X129: 0 | Y129: 0 | Z129: 0 | AA129: 0 | AB129: 0 | AC129: 0
B130: 8. Klasse | C130: 20 | D130: 25.55555556 | E130: 30 | F130: 10 | G130: 1.111111111 | H130: 13.33333333 | I130: 0 | J130: 0 | K130: 0 | L130: 0 | M130: 0 | N130: 0 | O130: 0 | P130: 0 | Q130: 0 | R130: 0 | S130: 0 | T130: 0 | U130: 0 | V130: 0 | W130: 0 | X130: 0 | Y130: 0 | Z130: 0 | AA130: 0 | AB130: 0 | AC130: 0
B131: 9. Klasse | C131: 25.66371681 | D131: 18.5840708 | E131: 32.74336283 | F131: 7.96460177 | G131: 1.769911504 | H131: 13.27433628 | I131: 0 | J131: 0 | K131: 0 | L131: 0 | M131: 0 | N131: 0 | O131: 0 | P131: 0 | Q131: 0 | R131: 0 | S131: 0 | T131: 0 | U131: 0 | V131: 0 | W131: 0 | X131: 0 | Y131: 0 | Z131: 0 | AA131: 0 | AB131: 0 | AC131: 0
B132: EF | C132: 25.75757576 | D132: 27.27272727 | E132: 30.3030303 | F132: 3.03030303 | G132: 1.515151515 | H132: 12.12121212 | I132: 0 | J132: 0 | K132: 0 | L132: 0 | M132: 0 | N132: 0 | O132: 0 | P132: 0 | Q132: 0 | R132: 0 | S132: 0 | T132: 0 | U132: 0 | V132: 0 | W132: 0 | X132: 0 | Y132: 0 | Z132: 0 | AA132: 0 | AB132: 0 | AC132: 0
B133: Q1 | C133: 21.11111111 | D133: 20 | E133: 36.66666667 | F133: 7.777777778 | G133: 2.222222222 | H133: 12.22222222 | I133: 0 | J133: 0 | K133: 0 | L133: 0 | M133: 0 | N133: 0 | O133: 0 | P133: 0 | Q133: 0 | R133: 0 | S133: 0 | T133: 0 | U133: 0 | V133: 0 | W133: 0 | X133: 0 | Y133: 0 | Z133: 0 | AA133: 0 | AB133: 0 | AC133: 0
B134: Q2 | C134: 14.81481481 | D134: 22.22222222 | E134: 38.88888889 | F134: 16.66666667 | G134: 1.851851852 | H134: 5.555555556 | I134: 0 | J134: 0 | K134: 0 | L134: 0 | M134: 0 | N134: 0 | O134: 0 | P134: 0 | Q134: 0 | R134: 0 | S134: 0 | T134: 0 | U134: 0 | V134: 0 | W134: 0 | X134: 0 | Y134: 0 | Z134: 0 | AA134: 0 | AB134: 0 | AC134: 0
B136: Bereich | C136: CDU | D136: GRÜNE | E136: FDP | F136: SPD | G136: Tierschutzpartei | H136: Sonstige
B137: Gesamte Schule | C137: 25.65982405 | D137: 24.34017595 | E137: 24.04692082 | F137: 9.090909091 | G137: 5.278592375 | H137: 11.58357771
B138: Unterstufe | C138: 36.06557377 | D138: 28.41530055 | E138: 6.557377049 | F138: 7.103825137 | G138: 13.1147541 | H138: 8.743169399
B139: Mittelstufe | C139: 22.49134948 | D139: 22.83737024 | E139: 26.98961938 | F139: 10.7266436 | G139: 2.76816609 | H139: 14.18685121
B140: Oberstufe | C140: 20.95238095 | D140: 22.85714286 | E140: 35.23809524 | F140: 8.571428571 | G140: 1.904761905 | H140: 10.47619048
B141: 5. Klasse | C141: 34.44444444 | D141: 26.66666667 | E141: 8.888888889 | F141: 4.444444444 | G141: 14.44444444 | H141: 11.11111111
B142: 6. Klasse | C142: 37.6344086 | D142: 30.10752688 | E142: 4.301075269 | F142: 9.677419355 | G142: 11.82795699 | H142: 6.451612903
B143: 7. Klasse | C143: 20.93023256 | D143: 25.58139535 | E143: 16.27906977 | F143: 15.11627907 | G143: 5.813953488 | H143: 16.27906977
B144: 8. Klasse | C144: 20 | D144: 25.55555556 | E144: 30 | F144: 10 | G144: 1.111111111 | H144: 13.33333333
B145: 9. Klasse | C145: 25.66371681 | D145: 18.5840708 | E145: 32.74336283 | F145: 7.96460177 | G145: 1.769911504 | H145: 13.27433628
B146: EF | C146: 25.75757576 | D146: 27.27272727 | E146: 30.3030303 | F146: 3.03030303 | G146: 1.515151515 | H146: 12.12121212
B147: Q1 | C147: 21.11111111 | D147: 20 | E147: 36.66666667 | F147: 7.777777778 | G147: 2.222222222 | H147: 12.22222222
B148: Q2 | C148: 14.81481481 | D148: 22.22222222 | E148: 38.88888889 | F148: 16.66666667 | G148: 1.851851852 | H148: 5.555555556
B152: y | C152: =C108:G108 -> CDU | D152: GRÜNE | E152: FDP | F152: SPD | G152: Tierschutzpartei | H152: Sonstige | I152: Gesamt
B153: =B109:B120 -> Gesamte Schule | C153: =C109:H120/100 -> 0.2565982405 | D153: 0.2434017595 | E153: 0.2404692082 | F153: 0.09090909091 | G153: 0.05278592375 | H153: 0.1158357771 | I153: =SUM(C153:H153) -> 1
B154: Unterstufe | C154: 0.3606557377 | D154: 0.2841530055 | E154: 0.06557377049 | F154: 0.07103825137 | G154: 0.131147541 | H154: 0.08743169399 | I154: =SUM(C154:H154) -> 1
B155: Mittelstufe | C155: 0.2249134948 | D155: 0.2283737024 | E155: 0.2698961938 | F155: 0.107266436 | G155: 0.0276816609 | H155: 0.1418685121 | I155: 1
B156: Oberstufe | C156: 0.2095238095 | D156: 0.2285714286 | E156: 0.3523809524 | F156: 0.08571428571 | G156: 0.01904761905 | H156: 0.1047619048 | I156: 1
B157: 5. Klasse | C157: 0.3444444444 | D157: 0.2666666667 | E157: 0.08888888889 | F157: 0.04444444444 | G157: 0.1444444444 | H157: 0.1111111111 | I157: 1
B158: 6. Klasse | C158: 0.376344086 | D158: 0.3010752688 | E158: 0.04301075269 | F158: 0.09677419355 | G158: 0.1182795699 | H158: 0.06451612903 | I158: 1
B159: 7. Klasse | C159: 0.2093023256 | D159: 0.2558139535 | E159: 0.1627906977 | F159: 0.1511627907 | G159: 0.05813953488 | H159: 0.1627906977 | I159: 1
B160: 8. Klasse | C160: 0.2 | D160: 0.2555555556 | E160: 0.3 | F160: 0.1 | G160: 0.01111111111 | H160: 0.1333333333 | I160: 1
B161: 9. Klasse | C161: 0.2566371681 | D161: 0.185840708 | E161: 0.3274336283 | F161: 0.0796460177 | G161: 0.01769911504 | H161: 0.1327433628 | I161: 1
B162: EF | C162: 0.2575757576 | D162: 0.2727272727 | E162: 0.303030303 | F162: 0.0303030303 | G162: 0.01515151515 | H162: 0.1212121212 | I162: 1
B163: Q1 | C163: 0.2111111111 | D163: 0.2 | E163: 0.3666666667 | F163: 0.07777777778 | G163: 0.02222222222 | H163: 0.1222222222 | I163: 1
B164: Q2 | C164: 0.1481481481 | D164: 0.2222222222 | E164: 0.3888888889 | F164: 0.1666666667 | G164: 0.01851851852 | H164: 0.05555555556 | I164: 1
C171: Spaltenbeschriftungen
B172: Werte | C172: Gesamte Schule | D172: Unterstufe | E172: Mittelstufe | F172: Oberstufe | G172: 5. Klasse | H172: 6. Klasse | I172: 7. Klasse | J172: 8. Klasse | K172: 9. Klasse | L172: EF | M172: Q1 | N172: Q2 | O172: Gesamtergebnis
B173: CDU | C173: 0.2565982405 | D173: 0.3606557377 | E173: 0.2249134948 | F173: 0.2095238095 | G173: 0.3444444444 | H173: 0.376344086 | I173: 0.2093023256 | J173: 0.2 | K173: 0.2566371681 | L173: 0.2575757576 | M173: 0.2111111111 | N173: 0.1481481481 | O173: 3.055254324
B174: FDP | C174: 0.2404692082 | D174: 0.06557377049 | E174: 0.2698961938 | F174: 0.3523809524 | G174: 0.08888888889 | H174: 0.04301075269 | I174: 0.1627906977 | J174: 0.3 | K174: 0.3274336283 | L174: 0.303030303 | M174: 0.3666666667 | N174: 0.3888888889 | O174: 2.909029951
B175: GRÜNE | C175: 0.2434017595 | D175: 0.2841530055 | E175: 0.2283737024 | F175: 0.2285714286 | G175: 0.2666666667 | H175: 0.3010752688 | I175: 0.2558139535 | J175: 0.2555555556 | K175: 0.185840708 | L175: 0.2727272727 | M175: 0.2 | N175: 0.2222222222 | O175: 2.944401543
B176: SPD | C176: 0.09090909091 | D176: 0.07103825137 | E176: 0.107266436 | F176: 0.08571428571 | G176: 0.04444444444 | H176: 0.09677419355 | I176: 0.1511627907 | J176: 0.1 | K176: 0.0796460177 | L176: 0.0303030303 | M176: 0.07777777778 | N176: 0.1666666667 | O176: 1.101702985
B177: Tierschutzpartei | C177: 0.05278592375 | D177: 0.131147541 | E177: 0.0276816609 | F177: 0.01904761905 | G177: 0.1444444444 | H177: 0.1182795699 | I177: 0.05813953488 | J177: 0.01111111111 | K177: 0.01769911504 | L177: 0.01515151515 | M177: 0.02222222222 | N177: 0.01851851852 | O177: 0.636228776
B178: Sonstige | C178: 0.1158357771 | D178: 0.08743169399 | E178: 0.1418685121 | F178: 0.1047619048 | G178: 0.1111111111 | H178: 0.06451612903 | I178: 0.1627906977 | J178: 0.1333333333 | K178: 0.1327433628 | L178: 0.1212121212 | M178: 0.1222222222 | N178: 0.05555555556 | O178: 1.353382421
B179: Gesamt | C179: 1 | D179: 1 | E179: 1 | F179: 1 | G179: 1 | H179: 1 | I179: 1 | J179: 1 | K179: 1 | L179: 1 | M179: 1 | N179: 1 | O179: 12
B183: =_xlfn.ANCHORARRAY(B65) -> x | C183: =C65:AC65 -> CDU | D183: GRÜNE | E183: FDP | F183: SPD | G183: Tierschutzpartei | H183: DIE LINKE | I183: Team Todenhöfer | J183: PIRATEN | K183: AfD | L183: Die PARTEI | M183: dieBasis | N183: Volt | O183: DKP | P183: FREIE WÄHLER | Q183: V-Partei³ | R183: NPD | S183: MLPD | T183: LIEBE | U183: LKR | V183: ÖDP | W183: Gesundheitsforschung | X183: Die Humanisten | Y183: du. | Z183: PdF | AA183: LfK | AB183: SGP | AC183: Bündnis C | AD183: Sonstige
B184: Gesamte Schule | C184: =IF($P$2=TRUE,C66,C66/SUM($C66:$AC66)) -> 175 | D184: =IF($P$2=TRUE,D66,D66/SUM($C66:$AC66)) -> 166 | E184: 164 | F184: 62 | G184: 36 | H184: 11 | I184: 10 | J184: 9 | K184: 8 | L184: 7 | M184: 5 | N184: 5 | O184: 4 | P184: 3 | Q184: 3 | R184: 2 | S184: 2 | T184: 2 | U184: 2 | V184: 1 | W184: 1 | X184: 1 | Y184: 1 | Z184: 1 | AA184: 1 | AB184: =IF($O$2=TRUE,AB66,AB66/SUM($C66:$AC66)) -> 0 | AC184: =IF($O$2=TRUE,AC66,AC66/SUM($C66:$AC66)) -> 0 | AD184: =SUM(H184:AC184) -> 79
B185: Unterstufe | C185: =IF($P$2=TRUE,C67,C67/SUM($C67:$AC67)) -> 66 | D185: 52 | E185: 12 | F185: 13 | G185: 24 | H185: 2 | I185: 0 | J185: 2 | K185: 5 | L185: 0 | M185: 0 | N185: 0 | O185: 2 | P185: 0 | Q185: 1 | R185: 0 | S185: 1 | T185: 0 | U185: 2 | V185: 0 | W185: 0 | X185: 0 | Y185: 0 | Z185: 0 | AA185: 1 | AB185: =IF($O$2=TRUE,AB67,AB67/SUM($C67:$AC67)) -> 0 | AC185: 0 | AD185: =SUM(H185:AC185) -> 16
B186: Mittelstufe | C186: 65 | D186: 66 | E186: 78 | F186: 31 | G186: 8 | H186: 3 | I186: 8 | J186: 5 | K186: 3 | L186: 5 | M186: 4 | N186: 2 | O186: 1 | P186: 2 | Q186: 2 | R186: 1 | S186: 0 | T186: 2 | U186: 0 | V186: 0 | W186: 1 | X186: 0 | Y186: 1 | Z186: 1 | AA186: 0 | AB186: =IF($O$2=TRUE,AB68,AB68/SUM($C68:$AC68)) -> 0 | AC186: 0 | AD186: 41
B187: Oberstufe | C187: 44 | D187: 48 | E187: 74 | F187: 18 | G187: 4 | H187: 6 | I187: 2 | J187: 2 | K187: 0 | L187: 2 | M187: 1 | N187: 3 | O187: 1 | P187: 1 | Q187: 0 | R187: 1 | S187: 1 | T187: 0 | U187: 0 | V187: 1 | W187: 0 | X187: 1 | Y187: 0 | Z187: 0 | AA187: 0 | AB187: =IF($O$2=TRUE,AB69,AB69/SUM($C69:$AC69)) -> 0 | AC187: 0 | AD187: 22
B188: 5. Klasse | C188: 31 | D188: 24 | E188: 8 | F188: 4 | G188: 13 | H188: 2 | I188: 0 | J188: 1 | K188: 4 | L188: 0 | M188: 0 | N188: 0 | O188: 0 | P188: 0 | Q188: 0 | R188: 0 | S188: 1 | T188: 0 | U188: 2 | V188: 0 | W188: 0 | X188: 0 | Y188: 0 | Z188: 0 | AA188: 0 | AB188: =IF($O$2=TRUE,AB70,AB70/SUM($C70:$AC70)) -> 0 | AC188: 0 | AD188: 10
B189: 6. Klasse | C189: 35 | D189: 28 | E189: 4 | F189: 9 | G189: 11 | H189: 0 | I189: 0 | J189: 1 | K189: 1 | L189: 0 | M189: 0 | N189: 0 | O189: 2 | P189: 0 | Q189: 1 | R189: 0 | S189: 0 | T189: 0 | U189: 0 | V189: 0 | W189: 0 | X189: 0 | Y189: 0 | Z189: 0 | AA189: 1 | AB189: =IF($O$2=TRUE,AB71,AB71/SUM($C71:$AC71)) -> 0 | AC189: 0 | AD189: 6
B190: 7. Klasse | C190: 18 | D190: 22 | E190: 14 | F190: 13 | G190: 5 | H190: 1 | I190: 1 | J190: 2 | K190: 2 | L190: 3 | M190: 1 | N190: 0 | O190: 1 | P190: 0 | Q190: 0 | R190: 1 | S190: 0 | T190: 1 | U190: 0 | V190: 0 | W190: 1 | X190: 0 | Y190: 0 | Z190: 0 | AA190: 0 | AB190: =IF($O$2=TRUE,AB72,AB72/SUM($C72:$AC72)) -> 0 | AC190: 0 | AD190: 14
B191: 8. Klasse | C191: 18 | D191: 23 | E191: 27 | F191: 9 | G191: 1 | H191: 1 | I191: 4 | J191: 2 | K191: 1 | L191: 2 | M191: 0 | N191: 0 | O191: 0 | P191: 0 | Q191: 0 | R191: 0 | S191: 0 | T191: 1 | U191: 0 | V191: 0 | W191: 0 | X191: 0 | Y191: 1 | Z191: 0 | AA191: 0 | AB191: =IF($O$2=TRUE,AB73,AB73/SUM($C73:$AC73)) -> 0 | AC191: 0 | AD191: 12
B192: 9. Klasse | C192: 29 | D192: 21 | E192: 37 | F192: 9 | G192: 2 | H192: 1 | I192: 3 | J192: 1 | K192: 0 | L192: 0 | M192: 3 | N192: 2 | O192: 0 | P192: 2 | Q192: 2 | R192: 0 | S192: 0 | T192: 0 | U192: 0 | V192: 0 | W192: 0 | X192: 0 | Y192: 0 | Z192: 1 | AA192: 0 | AB192: =IF($O$2=TRUE,AB74,AB74/SUM($C74:$AC74)) -> 0 | AC192: 0 | AD192: 15
B193: EF | C193: 17 | D193: 18 | E193: 20 | F193: 2 | G193: 1 | H193: 1 | I193: 1 | J193: 0 | K193: 0 | L193: 2 | M193: 0 | N193: 3 | O193: 0 | P193: 1 | Q193: 0 | R193: 0 | S193: 0 | T193: 0 | U193: 0 | V193: 0 | W193: 0 | X193: 0 | Y193: 0 | Z193: 0 | AA193: 0 | AB193: =IF($O$2=TRUE,AB75,AB75/SUM($C75:$AC75)) -> 0 | AC193: 0 | AD193: 8
B194: Q1 | C194: 19 | D194: 18 | E194: 33 | F194: 7 | G194: 2 | H194: 5 | I194: 1 | J194: 2 | K194: 0 | L194: 0 | M194: 1 | N194: 0 | O194: 1 | P194: 0 | Q194: 0 | R194: 1 | S194: 0 | T194: 0 | U194: 0 | V194: 0 | W194: 0 | X194: 0 | Y194: 0 | Z194: 0 | AA194: 0 | AB194: =IF($O$2=TRUE,AB76,AB76/SUM($C76:$AC76)) -> 0 | AC194: 0 | AD194: 11
B195: Q2 | C195: 8 | D195: 12 | E195: 21 | F195: 9 | G195: 1 | H195: 0 | I195: 0 | J195: =IF($P$2=TRUE,J77,J77/SUM($C77:$AC77)) -> 0 | K195: 0 | L195: 0 | M195: 0 | N195: 0 | O195: 0 | P195: 0 | Q195: 0 | R195: 0 | S195: 1 | T195: 0 | U195: 0 | V195: 1 | W195: 0 | X195: 1 | Y195: 0 | Z195: 0 | AA195: 0 | AB195: =IF($O$2=TRUE,AB77,AB77/SUM($C77:$AC77)) -> 0 | AC195: 0 | AD195: 3
B198: =OFFSET(B183:AC195,,,ROWS(_xlfn.ANCHORARRAY(B183))-COUNTIF(_xlfn.ANCHORARRAY(B183),0),IF(P3=FALSE,6,COLUMNS(B183:AC183))) -> x | C198: CDU | D198: GRÜNE | E198: FDP | F198: SPD | G198: Tierschutzpartei | H198: DIE LINKE | I198: Team Todenhöfer | J198: PIRATEN | K198: AfD | L198: Die PARTEI | M198: dieBasis | N198: Volt | O198: DKP | P198: FREIE WÄHLER | Q198: V-Partei³ | R198: NPD | S198: MLPD | T198: LIEBE | U198: LKR | V198: ÖDP | W198: Gesundheitsforschung | X198: Die Humanisten | Y198: du. | Z198: PdF | AA198: LfK | AB198: SGP | AC198: Bündnis C
B199: Gesamte Schule | C199: 175 | D199: 166 | E199: 164 | F199: 62 | G199: 36 | H199: 11 | I199: 10 | J199: 9 | K199: 8 | L199: 7 | M199: 5 | N199: 5 | O199: 4 | P199: 3 | Q199: 3 | R199: 2 | S199: 2 | T199: 2 | U199: 2 | V199: 1 | W199: 1 | X199: 1 | Y199: 1 | Z199: 1 | AA199: 1 | AB199: 0 | AC199: 0
B200: Unterstufe | C200: 66 | D200: 52 | E200: 12 | F200: 13 | G200: 24 | H200: 2 | I200: 0 | J200: 2 | K200: 5 | L200: 0 | M200: 0 | N200: 0 | O200: 2 | P200: 0 | Q200: 1 | R200: 0 | S200: 1 | T200: 0 | U200: 2 | V200: 0 | W200: 0 | X200: 0 | Y200: 0 | Z200: 0 | AA200: 1 | AB200: 0 | AC200: 0
B201: Mittelstufe | C201: 65 | D201: 66 | E201: 78 | F201: 31 | G201: 8 | H201: 3 | I201: 8 | J201: 5 | K201: 3 | L201: 5 | M201: 4 | N201: 2 | O201: 1 | P201: 2 | Q201: 2 | R201: 1 | S201: 0 | T201: 2 | U201: 0 | V201: 0 | W201: 1 | X201: 0 | Y201: 1 | Z201: 1 | AA201: 0 | AB201: 0 | AC201: 0
B202: Oberstufe | C202: 44 | D202: 48 | E202: 74 | F202: 18 | G202: 4 | H202: 6 | I202: 2 | J202: 2 | K202: 0 | L202: 2 | M202: 1 | N202: 3 | O202: 1 | P202: 1 | Q202: 0 | R202: 1 | S202: 1 | T202: 0 | U202: 0 | V202: 1 | W202: 0 | X202: 1 | Y202: 0 | Z202: 0 | AA202: 0 | AB202: 0 | AC202: 0
B203: 5. Klasse | C203: 31 | D203: 24 | E203: 8 | F203: 4 | G203: 13 | H203: 2 | I203: 0 | J203: 1 | K203: 4 | L203: 0 | M203: 0 | N203: 0 | O203: 0 | P203: 0 | Q203: 0 | R203: 0 | S203: 1 | T203: 0 | U203: 2 | V203: 0 | W203: 0 | X203: 0 | Y203: 0 | Z203: 0 | AA203: 0 | AB203: 0 | AC203: 0
B204: 6. Klasse | C204: 35 | D204: 28 | E204: 4 | F204: 9 | G204: 11 | H204: 0 | I204: 0 | J204: 1 | K204: 1 | L204: 0 | M204: 0 | N204: 0 | O204: 2 | P204: 0 | Q204: 1 | R204: 0 | S204: 0 | T204: 0 | U204: 0 | V204: 0 | W204: 0 | X204: 0 | Y204: 0 | Z204: 0 | AA204: 1 | AB204: 0 | AC204: 0
B205: 7. Klasse | C205: 18 | D205: 22 | E205: 14 | F205: 13 | G205: 5 | H205: 1 | I205: 1 | J205: 2 | K205: 2 | L205: 3 | M205: 1 | N205: 0 | O205: 1 | P205: 0 | Q205: 0 | R205: 1 | S205: 0 | T205: 1 | U205: 0 | V205: 0 | W205: 1 | X205: 0 | Y205: 0 | Z205: 0 | AA205: 0 | AB205: 0 | AC205: 0
B206: 8. Klasse | C206: 18 | D206: 23 | E206: 27 | F206: 9 | G206: 1 | H206: 1 | I206: 4 | J206: 2 | K206: 1 | L206: 2 | M206: 0 | N206: 0 | O206: 0 | P206: 0 | Q206: 0 | R206: 0 | S206: 0 | T206: 1 | U206: 0 | V206: 0 | W206: 0 | X206: 0 | Y206: 1 | Z206: 0 | AA206: 0 | AB206: 0 | AC206: 0
B207: 9. Klasse | C207: 29 | D207: 21 | E207: 37 | F207: 9 | G207: 2 | H207: 1 | I207: 3 | J207: 1 | K207: 0 | L207: 0 | M207: 3 | N207: 2 | O207: 0 | P207: 2 | Q207: 2 | R207: 0 | S207: 0 | T207: 0 | U207: 0 | V207: 0 | W207: 0 | X207: 0 | Y207: 0 | Z207: 1 | AA207: 0 | AB207: 0 | AC207: 0
B208: EF | C208: 17 | D208: 18 | E208: 20 | F208: 2 | G208: 1 | H208: 1 | I208: 1 | J208: 0 | K208: 0 | L208: 2 | M208: 0 | N208: 3 | O208: 0 | P208: 1 | Q208: 0 | R208: 0 | S208: 0 | T208: 0 | U208: 0 | V208: 0 | W208: 0 | X208: 0 | Y208: 0 | Z208: 0 | AA208: 0 | AB208: 0 | AC208: 0
B209: Q1 | C209: 19 | D209: 18 | E209: 33 | F209: 7 | G209: 2 | H209: 5 | I209: 1 | J209: 2 | K209: 0 | L209: 0 | M209: 1 | N209: 0 | O209: 1 | P209: 0 | Q209: 0 | R209: 1 | S209: 0 | T209: 0 | U209: 0 | V209: 0 | W209: 0 | X209: 0 | Y209: 0 | Z209: 0 | AA209: 0 | AB209: 0 | AC209: 0
B210: Q2 | C210: 8 | D210: 12 | E210: 21 | F210: 9 | G210: 1 | H210: 0 | I210: 0 | J210: 0 | K210: 0 | L210: 0 | M210: 0 | N210: 0 | O210: 0 | P210: 0 | Q210: 0 | R210: 0 | S210: 1 | T210: 0 | U210: 0 | V210: 1 | W210: 0 | X210: 1 | Y210: 0 | Z210: 0 | AA210: 0 | AB210: 0 | AC210: 0
B212: =OFFSET(B183:N195,,,ROWS(_xlfn.ANCHORARRAY(B183))-COUNTIF(_xlfn.ANCHORARRAY(B183),0),6) -> x | C212: CDU | D212: GRÜNE | E212: FDP | F212: SPD | G212: Tierschutzpartei | H212: =AD183:AD195 -> Sonstige | J212: =" " -> 
B213: Gesamte Schule | C213: 175 | D213: 166 | E213: 164 | F213: 62 | G213: 36 | H213: 79
B214: Unterstufe | C214: 66 | D214: 52 | E214: 12 | F214: 13 | G214: 24 | H214: 16
B215: Mittelstufe | C215: 65 | D215: 66 | E215: 78 | F215: 31 | G215: 8 | H215: 41
B216: Oberstufe | C216: 44 | D216: 48 | E216: 74 | F216: 18 | G216: 4 | H216: 22
B217: 5. Klasse | C217: 31 | D217: 24 | E217: 8 | F217: 4 | G217: 13 | H217: 10
B218: 6. Klasse | C218: 35 | D218: 28 | E218: 4 | F218: 9 | G218: 11 | H218: 6
B219: 7. Klasse | C219: 18 | D219: 22 | E219: 14 | F219: 13 | G219: 5 | H219: 14
B220: 8. Klasse | C220: 18 | D220: 23 | E220: 27 | F220: 9 | G220: 1 | H220: 12
B221: 9. Klasse | C221: 29 | D221: 21 | E221: 37 | F221: 9 | G221: 2 | H221: 15
B222: EF | C222: 17 | D222: 18 | E222: 20 | F222: 2 | G222: 1 | H222: 8
B223: Q1 | C223: 19 | D223: 18 | E223: 33 | F223: 7 | G223: 2 | H223: 11
B224: Q2 | C224: 8 | D224: 12 | E224: 21 | F224: 9 | G224: 1 | H224: 3
B226: =IF($P$3=TRUE,B198:AC198,B212:AC212) -> x | C226: CDU | D226: GRÜNE | E226: FDP | F226: SPD | G226: Tierschutzpartei | H226: DIE LINKE | I226: Team Todenhöfer | J226: PIRATEN | K226: AfD | L226: Die PARTEI | M226: dieBasis | N226: Volt | O226: DKP | P226: FREIE WÄHLER | Q226: V-Partei³ | R226: NPD | S226: MLPD | T226: LIEBE | U226: LKR | V226: ÖDP | W226: Gesundheitsforschung | X226: Die Humanisten | Y226: du. | Z226: PdF | AA226: LfK | AB226: SGP | AC226: Bündnis C
B227: =OFFSET(Analyse.2!$B$199:$AC$224,IF(Analyse.2!$P$3=TRUE,0,14),,12) -> Gesamte Schule | C227: 175 | D227: 166 | E227: 164 | F227: 62 | G227: 36 | H227: 11 | I227: 10 | J227: 9 | K227: 8 | L227: 7 | M227: 5 | N227: 5 | O227: 4 | P227: 3 | Q227: 3 | R227: 2 | S227: 2 | T227: 2 | U227: 2 | V227: 1 | W227: 1 | X227: 1 | Y227: 1 | Z227: 1 | AA227: 1 | AB227: 0 | AC227: 0
... 37 more rows

Sheet Wahlbeteiligung (hidden)
A1: Klasse | B1: 5 | C1: 6 | D1: 7 | E1: 8 | F1: 9 | G1: EF | H1: Q1 | I1: Q2 | J1: Gesamt
A2: 1. Stimme | B2: =SUM(_1Stimme[5]) -> 90 | C2: =SUM(_1Stimme[6]) -> 92 | D2: =SUM(_1Stimme[7]) -> 91 | E2: =SUM(_1Stimme[8]) -> 90 | F2: =SUM(_1Stimme[9]) -> 110 | G2: =SUM(_1Stimme[EF]) -> 64 | H2: =SUM(_1Stimme[Q1]) -> 90 | I2: =SUM(_1Stimme[Q2]) -> 54 | J2: =SUM(B2:I2) -> 681
A3: 2. Stimme | B3: =SUM('Daten-2'!B2:B29) -> 90 | C3: =SUM('Daten-2'!C2:C29) -> 93 | D3: =SUM('Daten-2'!D2:D29) -> 87 | E3: =SUM('Daten-2'!E2:E29) -> 90 | F3: =SUM('Daten-2'!F2:F29) -> 116 | G3: =SUM('Daten-2'!G2:G29) -> 66 | H3: =SUM('Daten-2'!H2:H29) -> 90 | I3: =SUM('Daten-2'!I2:I29) -> 54 | J3: =SUM(B3:I3) -> 686
A4: Max | B4: =MAX(B2:B3) -> 90 | C4: =MAX(C2:C3) -> 93 | D4: 91 | E4: 90 | F4: 116 | G4: 66 | H4: 90 | I4: 54 | J4: =SUM(B4:I4) -> 690
A6: Wahlberechtigte | B6: 92 | C6: 96 | D6: 95 | E6: 105 | F6: 124 | G6: 92 | H6: 107 | I6: 89 | J6: =SUM(B6:I6) -> 800
A9: Beteiligung | B9: =MAX(B2:B3)/B6 -> 0.9782608696 | C9: =MAX(C2:C3)/C6 -> 0.96875 | D9: 0.9578947368 | E9: 0.8571428571 | F9: 0.935483871 | G9: 0.7173913043 | H9: 0.8411214953 | I9: 0.606741573 | J9: =MAX(J2:J3)/J6 -> 0.8575
B11: Stimmen | C11: Wahlberechtigte | D11: Beteiligung
A12: Unterstufe | B12: =B4+C4 -> 183 | C12: =B6+C6 -> 188 | D12: =B12/C12 -> 0.9734042553
A13: Mittelstufe | B13: =D4+E4+F4 -> 297 | C13: =D6+E6+F6 -> 324 | D13: =B13/C13 -> 0.9166666667
A14: Oberstufe | B14: =G4+H4+I4 -> 210 | C14: =G6+H6+I6 -> 288 | D14: 0.7291666667
A15: Gesamt | B15: =J4 -> 690 | C15: =J6 -> 800 | D15: 0.8625
A18: Bereich | B18: Wahlberechtigte | C18: Abgegebene Stimmen | D18: Wahlbeteiligung | F18: Zeilenbeschriftungen | G18: Wahlberechtigte | H18: Abgegebene Stimmen
A19: Gesamte Schule | B19: =C15 -> 800 | C19: =B15 -> 690 | D19: =C19/B19 -> 0.8625 | F19: Gesamte Schule | G19: 800 | H19: 690
A20: Unterstufe | B20: =C12 -> 188 | C20: =B12 -> 183 | D20: =C20/B20 -> 0.9734042553 | F20: Unterstufe | G20: 188 | H20: 183
A21: Mittelstufe | B21: =C13 -> 324 | C21: =B13 -> 297 | D21: 0.9166666667 | F21: Mittelstufe | G21: 324 | H21: 297
A22: Oberstufe | B22: 288 | C22: 210 | D22: 0.7291666667 | F22: Oberstufe | G22: 288 | H22: 210
A23: 5. Klasse | B23: =B6 -> 92 | C23: =B4 -> 90 | D23: 0.9782608696 | F23: 5. Klasse | G23: 92 | H23: 90
A24: 6. Klasse | B24: =C6 -> 96 | C24: =C4 -> 93 | D24: 0.96875 | F24: 6. Klasse | G24: 96 | H24: 93
A25: 7. Klasse | B25: =D6 -> 95 | C25: =D4 -> 91 | D25: 0.9578947368 | F25: 7. Klasse | G25: 95 | H25: 91
A26: 8. Klasse | B26: =E6 -> 105 | C26: =E4 -> 90 | D26: 0.8571428571 | F26: 8. Klasse | G26: 105 | H26: 90
A27: 9. Klasse | B27: =F6 -> 124 | C27: =F4 -> 116 | D27: 0.935483871 | F27: 9. Klasse | G27: 124 | H27: 116
A28: EF | B28: =G6 -> 92 | C28: =G4 -> 66 | D28: 0.7173913043 | F28: EF | G28: 92 | H28: 66
A29: Q1 | B29: =H6 -> 107 | C29: =H4 -> 90 | D29: 0.8411214953 | F29: Q1 | G29: 107 | H29: 90
A30: Q2 | B30: =I6 -> 89 | C30: =I4 -> 54 | D30: 0.606741573 | F30: Q2 | G30: 89 | H30: 54
F33: Zeilenbeschriftungen | G33: Summe von Wahlbeteiligung
F34: Gesamte Schule | G34: 0.8625
F35: Unterstufe | G35: 0.9734042553
F36: Mittelstufe | G36: 0.9166666667
F37: Oberstufe | G37: 0.7291666667
F38: 5. Klasse | G38: 0.9782608696
F39: 6. Klasse | G39: 0.96875
F40: 7. Klasse | G40: 0.9578947368
F41: 8. Klasse | G41: 0.8571428571
F42: 9. Klasse | G42: 0.935483871
F43: EF | G43: 0.7173913043
F44: Q1 | G44: 0.8411214953
F45: Q2 | G45: 0.606741573
